Workbook

Sheet Inicio
E3: Energía Solar Térmica
E4: Hoja de càlculo para ser utilizada con el libro del mismo nombre, de M. Rosas Casals y J. Cendra Garreta, editado por Edicions UPC
E5: http://upcommons.upc.edu/handle/2099.3/36583
E7: Implementa y desarrolla parte de los contenidos incluidos en la obra de referencia "Solar Engineering of Thermal Processes" (J. A. Duffie & W.A Beckman, John Wiley & Sons, 1991, USA)
E9: DESCARGO de RESPONSABILIDAD: los autores rechazan expresamente toda responsabilidad en relación con la utilización de los resultados generados en este hoja de càlculo y, en ningún caso, podrán ser considerados responsables frente a terceras partes por cualquier pérdida o daño que se derive de la aplicación de dichos resultados.
E14: Este libro está protegido por licencia Creative Commons.
E17: Permite las modificaciones en macros y códigos asociados que el usuario crea conveniente (a su cuenta y riesgo).
E18: Se recomienda guardar una copia de seguridad antes de modificar cualquier elemento.
E20: Leyenda:
C22: Valor | E22: Variables. (a) Introducidas por el usuario o (b) modificables mediante botones.
C24: Valor | E24: Datos obtenidos de las bases de datos
C26: Valor | E26: Resultados finales de cálculo para cada hoja
C28: Valor | E28: Resultados obtenidos en otras hojas del libro
C30: Valor | E30: Otros datos de partida y resultados intermedios
E32: Celdas auxiliares para uso interno de la plantilla. No tocar!

Sheet Instrucciones de uso
A1: *
D2: Antes de empezar:
D3: Para que TODA LA PLANTILLA funcione correctamente, debemos empezar por seleccionar una población en el menú despleglable de la pestaña "Radiación".
D5: Además de estos comentarios, prestad atención a los insertados en algunas celdas específicas. Los reconoceréis por un triángulo rojo en la parte superior derecha, como en ésta, y los podéis leer situando el ratón encima de la celda en cuestión.
B7: Pestaña | C7: Comentario
B9: Radiación: | C9: 1 | D9: La base de datos incluye 50 localidades de la Penínsua Ibérica. Para trabajar con datos de otras localidades, se debe seleccionar la opción "Genérica" en la lista desplegable. Esta opción borra el valor de la latitud así como el resto de valores utilizados de la base de datos en el resto de pestañas.
C10: 2 | D10: Para poblaciones del hemisferio sur, el signo de la latitud así como el signo de la inclinación deben ser negativos. Al verificar "Hemisferio Sur", cambiamos el signo de la inclinación. La latitud, con signo negativo, debe ser introducida también. No debemos olvidar entonces introducir el resto de datos necesarios, empezando por la radiación.
C11: 3 | D11: La correlación utilizada para calcular la razón de la radiación difusa (columna K) se puede particularizar para cada región. Podría utilizarse CUALQUIER correlación genérica. Por defecto y sencillez, utilizamos la de Page (simplificación de la 2.20).
C12: 4 | D12: La reflectividad del entorno (C4) suele considerarse nula, para estar siempre en el caso más desfavorable.
B14: Angulo_Incidencia: | C14: 1 | D14: Esta pestaña presenta el cálculo de la variación del producto ta respecto la desviación normal. Como se puede observar los valores no varían ostensiblemente a lo largo del año por lo que se suele considerar su promedio.
B16: Demanda_ACS: | C16: 1 | D16: Calculada según UNE 94002 (aceptada en CTE).
B18: Demanda_Climatización: | C18: 1 | D18: El UA estimado (E14) es el resultado del cálculo con los valores (E3:E12) y tan sólo se debe utilizar en caso de que no se conozcan los datos exactos de los cerramientos. La plantilla trabaja con el valor de la celda E16.
C19: 2 | D19: Los grados-día se pueden calcular (columna G) u obtener de una base de datos (columnas H e I). Esta plantilla trabaja con estos últimos. Ambos resultados pueden no necesariamente coincidir pues el proceso de cálculo en esta plantilla es aproximado ya que asumimos una temperatura del aire constante durante todo el mes. En otros casos puede variar la temperatura base (los GD de NASA por ejemplo son en base 65 F, esto es 18,34ºC).
C20: 3 | D20: Para cálculos de estimación de demanda de calefacción, lo normal es trabajar en base 18. En base 15 nos quedamos un poco por debajo en la estimación de la demanda real.
B22: Demanda_Piscinas: | C22: 1 | D22: La demanda térmica en piscinas suele ser órdenes de magnitud superior al resto de demandas. Por este motivo las piscinas (descubiertas sobretodo) se utilizan más que nada como sumidero de calor para alargar la temporada de baño.
B24: Demandas_Totales: | C24: 1 | D24: El método de cálculo de las curvas-f en esta plantilla trabaja con los datos de la pestaña "Demandas totales". En esta pestaña debéis seleccionar (= poner un tick en) la demanda con la que queréis calcular las curvas f y después clicar en el boton de "sumatorio". De esta forma las curvas f se calcularan para las demandas específcas que uno quiera.
B26: Curvas_f: | C26: 1 | D26: Esta pestaña permite escoger el cálculo de las curvas f según el fluido calorportador, esto es el fluido que pasa por el interior de los captadores, pudiendo ser aire o agua. También permite modificar los valores de diseño estándar. Atención a la opción "Sistema para ACS solamente", que debemos seleccionar cuando nuestro sistema esté diseñado para proporcionar agua caliente sanitaria solamente
C27: 2 | D27: Los valores de Fr(ta) y FrUl los debe proporcionar el fabricante del captador. En los catálogos o certificados, Fr(ta) suele ser un valor elevado (alrededor de 0,8 - 0,9) que normalmente recibe el nombre de rendimiento óptico. Para detereminar FrUl debemos fijarnos en las unidades y buscar W/m2K (FrUl no deja de ser una transmistancia térmica). En muchos casos FrUl, que se conoce como "k1", viene acompañado de un "k2" que tiene unidades W/m2K2. Este valor aparece porque la "recta" de rendimeinto no es en realidad una recta sinó una función ligeramente cuadrática. Pero k2 es órdenes de magnitud inferior a k1 y despreciable por este motivo.
C28: 3 | D28: El factor captador - intercambiador (H6) debe ser calculado siempre que se prevea la necesidad de utilizar un intercambiador externo entre circuitos primario y de acumulación.
C29: 4 | D29: Para estimar la evolución de la fracción anual de energía cubierta por el sol, definimos primero un rango de áreas de prueba amplio, para posteriormente acotar el rango para áreas que proporcionen la fracción deseada.
C30: 5 | D30: El valor òptimo de la fracción anual es, en general, aquel que impide sobrepasar el 90% en cualquier mes del año, para evitar sobrecalentamientos en el sistema. Para ACS, este valor suele rondar el 60%, valor que deja la fracción de los meses de verano (en latitudes 40N almenos) en menos de 95%. Pero las cosas cambian cuando se incluyen demandas térmicas que no son tan regulares a lo largo del año como ACS. Por ejemplo, en ACS+calefacción, podemos tener fracciones anuales del 25% traquilamente. También dependerá de la forma aual de la radición solar: en paises tropicales, como la radiación es mas regular, tambien lo es el aporte solar y la fraccion anual se puede aproximar mas a la maxima mensual permitida.
D32: En este punto:
D33: Las curvas-f determinan una valor que nada sabe de tipos de connexión, pérdidas en conductos o cualquier otra característica que finalmente esté presente en nuestro sistema solar. En este punto requerimos de un primer esbozo del sistema y afinar los cálculos en un proceso de aproximaciones sucesivas. Este es el momento de decidir que tipo de conexión utilizaremos (serie o paralelo) o como vamos a aislar nuestras tuberías o conductos, por ejemplo. Recordemos que, como marca la recta de funcionamiento de un captador, la alta temperatura va en contra de la eficiencia del sistema. Por lo tanto, en general, se tenderá a connectar en paralelo siempre. En general, la conexión en serie tan sólo se utiliza cuando queremos que un sistema determinado entre en regimen (temperatura de utilización adecuada) lo más rápidamente posible, como en hoteles, hospitales, etc.
B35: Pérdidas_Conductos: | C35: 1 | D35: El valor U se puede calcular o se puede pedir al fabricante del aislante de la tubería o conducto. Para las diferentes prácticas del Master, podéis suponer un valor de 1 W/m2K aunque no hace falta estimar pérdidas en conductos. A pesar de esto, pensad que el CTE sí lo exige.
C36: 2 | D36: La variación de FrUl (D20) es notablemente dependiente del área de conductos. Con una superficíe de captación de 2m2 (1placa) los tubos del circuito primario normalmente serían de diámetro 3/4" o aprox. 20 mm. Suponiendo 5m de ida y 5m de vuelta, esto proporciona un área de conductos de ida de 0,3 m2 y la misma de vuelta. Con estos datos, un FrUl que tenga valor original de 4,9 pasa a un valor de 5,2, esto es un 6% de aumento.
C37: 3 | D37: Para determinar el diámetro de tubería a utilizar en los diferentes tramos de nuestro primario, disponemos originalmente del caudal por m2 de captador (que proporciona el fabricante) y el diámetro del conducto de entrada o salida del mismo. Cuando las tuberías se empiezan a unir por motivos de conexión, podemos utilizar un ábaco como el de la página A57, el cual proporciona dos resultados a partir de dos datos. Por ejemplo, para encontrar el diámetro si conocemos el caudal, debemos considerar una pérdida de presión por metro lineal de entre 10 y 40 mmca/m. Con estos valores fijados, la velocidad del fluido y el diámetro de la tubería son los resultados.
D39: En este punto:
D40: Con las pérdidas en conductos estimadas y el tipo de conexión establecida, los valores de Fr(ta) y FrUl varían. Con estos nuevos valores debemos retroceder de nuevo a la pestaña Curvas-f para determinar como varía a su vez el comportamento de la fracción anual con estas modificaciones. El proceso de aproximaciones sucesivas es rápido y suele converger en dos iteraciones.
B42: Viabilidad_Económica: | C42: 1 | D42: El cálculo de la viabilidad económica de un sistema de EERR en general, o de energía solar en particular, es necesario siempre y cuando no venga, como es el caso del agua caliente sanitaria (ACS) y el Código Técnico de la Edificación, fijado por ley. En este sentido, esta pestaña puede ser medianamente útil cuando debamos justificar la viabilidad económica de proyectos que incluyan otras demandas además de la de ACS. El proceso de cálculo determina el área óptima que proporciona el máximo ahorro acumulado a lo largo de la vida útil de la instalación (VAN) o el menor tiempo de recuperación de la inversión (TRI). Aunque el área óptima para cada caso puede variar ligeramente (dado que el cálculo del VAN se realiza bajo premisas ligeramente diferentes que el TRI) y estimamos constantes las variables económicas a largo plazo (hecho claramente inverosímil), el resultado nos puede ayudar a situar el órden de magnitud adecuado para nuestra instalación.
C43: 2 | D43: Todas las estimaciones de precios y porcentajes de esta pestaña son harto discutibles. Tan sólo comentar algunas cosas:
D44: (a) El coste solar fijo (E6) es el que tienen todos los sistemas por pequeños que sean (no termosifón): bomba, acumulador, termostato, etc. Hasta unos 20 m2 de captación, se puede suponer constante, entre 1500 y 3000 € (en 2009). El coste variable (E5) es esencialmente el de los captadores, cuyo coste total es función del área.
D45: (b) Aunque el tiempo de vida de una instalación solar se cifra en 20 años (tiempo de vida de los captadores según los fabricantes), algunos elementos (sobretodo en el anillo primario, debido el estrés térmico al que están sometidos) pueden empezar a fallar mucho antes. Es recomendable seguir un estricto plan de mantenimiento que podemos cuantificar como un % de coste sobre la inversión (E8).
D46: (c) El cálculo de viabilidad busca el punto en el que la inversión sea compensada o (con suerte) superada por el ahorro de combustible fósil a lo largo de los años de vida del sistema. En este sentido, el tipo de combustible y de instalación auxiliar que vamos a utilizar así como su precio, pueden modificar notablemente los resultados obtenidos.
C47: 3 | D47: ATENCIÓN. Este cálculo de viabilidad no está pensado para instalaciones de frío solar, aunque es fácilmente adaptable con alguna modificación menor.
B49: Conclusiones: | C49: 1 | D49: La pestaña de conclusiones se basa en los resultados de área óptima de la pestaña Viabilidad_Económica. Por tanto, y para cualquier otro resultado que no venga de esta citada pestaña, debe ser modificada consecuentemente.
C50: 2 | D50: Los factores de CO2 (térmico y eléctrico) deben ser cotejados con los del mix particular de producción del país o región, para así proporcionar la cantidad de CO2 ahorrada con nuestra instalación solar particular. En este caso se utiliza tan sólo el factor de CO2 térmico.
B52: BBDD__Localidades: | C52: 1 | D52: BBDD con la lista de localidades incluidas en fSol.xls.
B54: BBDD_Clima: | C54: 1 | D54: Los datos de esta pestaña provienen del "Atlas de Radiación Solar de España" (Font, 1984) realizado por el Instituto Nacional de Meteorología de España y que hasta la fecha (y que yo sepa) no ha sido actualizado. Los datos de capitales de provincia de Catalunya provienen del "Atlas de Radiació Solar de Catalunya" y del documento "Els Graus Día de calefacció i refrigeració a Catalunya" (ICAEN, 2002).
C55: 2 | D55: Siempre es conveniente cotejar los datos climatológicos con otros que sean más actuales o fiables, preguntando siempre cuál es la fuente de información con la que trabajan las entidades locales o ayuntamientos y trabajar con ellas. Algunas páginas web útiles para encontrar datos meteorológicos son las siguientes:
D56: http://eosweb.larc.nasa.gov/sse/RETScreen/
D57: http://re.jrc.ec.europa.eu/pvgis/apps/radmonth.php?lang=es&map=europe
D58: http://opengis.uab.es/wms/iberia/espanol/es_cartografia.htm
B60: BBDD_Demanda: | C60: 1 | D60: BBDD con los valores necesarios para los cálculos de demanda de fSol.xls. La temperatura media mensual de agua de red se ha obtenido de UNE 94002.

Sheet Radiación
B1: (Apartado A del Material teórico base del Módulo 3)
B2: Inclinación del captador (º) | C2: =IF(I2=FALSE,F2,F2*(-1)) -> 35 | E2: b | F2: 35 | I2: FALSE | K2: Orientación del captador (º) | O2: 0 | Q2: g
B3: Latitud del lugar (º) | C3: 42.37 | E3: f
B4: Reflectividad del entorno | C4: 0.6 | E4: r
B5: Población
D7: ↓
B8: Mes (día característico) | C8: Día | D8: H | E8: d | F8: wsp | G8: as Máx | H8: He | I8: He | J8: KT | K8: Hd / H | L8: 1-Hd / H | M8: wsp | N8: arccos | O8: w'sp | P8: Rb | Q8: Comp. | R8: Comp. | S8: Comp. | T8: R | U8: HTOT | V8: HTOT
D9: (J/dia-m2) | E9: (º) | F9: (º) | G9: (º) | H9: (J/s-m2) | I9: (J/dia-m2) | J9: (H / He) | O9: (º) | U9: (J/dia-m2) | V9: (kWh/dia-m2) | AB9: (wsr) | AG9: (wss)
C10: n | D10: BBDD_Clima | E10: 2.2 | F10: 2.6 | G10: 2.3 | H10: 2.15 | I10: 2.16 | J10: 2.19 | K10: 2.20 | M10: 2.6 | O10: 2.22 | P10: 2.21 | Q10: directa | R10: difusa | S10: reflejada | T10: 2.18 | U10: 2.17 | V10: 2.17 | Y10: A | Z10: B | AA10: C | AB10: cos-1 | AC10: abs(min(wsr)) | AD10: A>0 and B>0 ? | AE10: A>=B? | AF10: wsr | AG10: cos-1 | AH10: abs(min(wss)) | AI10: wss | AJ10: a | AK10: b | AL10: d | AM10: a' | AN10: (wss) >= (wsr)? | AO10: (wsr) > (wss)? | AP10: G(wss, wsr) | AQ10: G(wss, -ws) | AR10: G(ws, wsr) | AS10: D
B11: G (17) | C11: 17 | D11: 3708000 | E11: =(23.45*(SIN(RADIANS(360*(284+C11)/365)))) -> -20.91696257 | F11: =DEGREES(ACOS(-TAN(RADIANS(lat))*TAN(RADIANS(E11)))) -> 69.59635359 | G11: =DEGREES(ASIN(((SIN(RADIANS(lat))*SIN(RADIANS(E11)))+(COS(RADIANS(lat))*COS(RADIANS(E11)))))) -> 26.71303743 | H11: =1367*(1+0.034*(COS(RADIANS(360*C11)/365)))*SIN(RADIANS(G11)) -> 634.5015817 | I11: =(24/PI())*1367*(1+0.034*COS(RADIANS(360*C11)/365))*(COS(RADIANS(lat))*COS(RADIANS(E11))*SIN(RADIANS(F11))+RADIANS(F11)*SIN(RADIANS(lat))*SIN(RADIANS(E11)))*3600 -> 13764130.58 | J11: =D11/I11 -> 0.2693958749 | K11: =1-1.13*J11 -> 0.6955826613 | L11: =1-K11 -> 0.3044173387 | M11: =F11 -> 69.59635359 | N11: =DEGREES(ACOS(-TAN(RADIANS(lat-b))*TAN(RADIANS(E11)))) -> 87.16637617 | O11: =MIN(M11:N11) -> 69.59635359 | P11: =(COS(RADIANS(lat-b))*COS(RADIANS(E11))*SIN(RADIANS(O11))+(RADIANS(O11))*SIN(RADIANS(lat-b))*SIN(RADIANS(E11)))/(COS(RADIANS(lat))*COS(RADIANS(E11))*SIN(RADIANS(F11))+RADIANS(F11)*SIN(RADIANS(lat))*SIN(RADIANS(E11))) -> 2.29187272 | Q11: =IF(gamma>5,AS11,L11*P11) -> 0.697685794 | R11: =K11*(1+COS(RADIANS(b)))/2 -> 0.6326853102 | S11: =_r*(1-COS(RADIANS(b)))/2 -> 0.05425438671 | T11: =Q11+R11+S11 -> 1.384625491 | U11: =T11*D11 -> 5134191.32 | V11: =U11/3600000 -> 1.426164256 | Y11: =COS(RADIANS(b))+TAN(RADIANS(lat))*COS(RADIANS(gamma))*SIN(RADIANS(b)) -> 1.342348833 | Z11: =COS(RADIANS(F11))*COS(RADIANS(b))+TAN(RADIANS(E11))*SIN(RADIANS(b))*COS(RADIANS(gamma)) -> 0.06636023233 | AA11: =SIN(RADIANS(b))*SIN(RADIANS(gamma))/(COS(RADIANS(lat))) -> 0 | AB11: =DEGREES(ACOS((Y11*Z11+AA11*SQRT(Y11^2-Z11^2+AA11^2))/(Y11^2+AA11^2))) -> 87.16637617 | AC11: =ABS(MIN(F11,AB11)) -> 69.59635359 | AD11: =IF(AND(Y11>0,Z11>0),1,0) -> 1 | AE11: =IF(Y11>=Z11,1,0) -> 1 | AF11: =IF(OR(AD11=1,AE11=1),-AC11,AC11) -> -69.59635359 | AG11: =DEGREES(ACOS((Y11*Z11-AA11*SQRT(Y11^2-Z11^2+AA11^2))/(Y11^2+AA11^2))) -> 87.16637617 | AH11: =ABS(MIN(F11,AG11)) -> 69.59635359 | AI11: =IF(OR(AD11=1,AE11=1),AH11,-AH11) -> 69.59635359 | AJ11: =0.409+0.506*SIN(RADIANS(F11-60)) -> 0.4933532338 | AK11: =0.6609-0.4767*(SIN(RADIANS(F11-60))) -> 0.5814312518 | AL11: =SIN(RADIANS(F11))-(PI()*F11/180)*COS(RADIANS(F11)) -> 0.5137819305 | AM11: =AJ11-K11 -> -0.2022294275 | AN11: =IF(AI11>=AF11,1,0) -> 1 | AO11: =IF(AF11>AI11,1,0) -> 0 | AP11: =(1/(AL11*2))*((AK11*Y11/2-AM11*Z11)*(AI11-AF11)*PI()/180+(AM11*Y11-AK11*Z11)*(SIN(RADIANS(AI11))-SIN(RADIANS(AF11)))-AM11*AA11*(COS(RADIANS(AI11))-COS(RADIANS(AF11)))+(AK11*Y11/2)*(SIN(RADIANS(AI11))*COS(RADIANS(AI11))-SIN(RADIANS(AF11))*COS(RADIANS(AF11)))+(AK11*AA11/2)*((SIN(RADIANS(AI11))^2)-(SIN(RADIANS(AF11))^2))) -> 0.6369296381 | AQ11: =(1/(AL11*2))*((AK11*Y11/2-AM11*Z11)*(AI11-(-F11))*PI()/180+(AM11*Y11-AK11*Z11)*(SIN(RADIANS(AI11))-SIN(RADIANS(-F11)))-AM11*AA11*(COS(RADIANS(AI11))-COS(RADIANS(-F11)))+(AK11*Y11/2)*(SIN(RADIANS(AI11))*COS(RADIANS(AI11))-SIN(RADIANS(-F11))*COS(RADIANS(-F11)))+(AK11*AA11/2)*((SIN(RADIANS(AI11))^2)-(SIN(RADIANS(-F11))^2))) -> 0.6369296381 | AR11: =(1/(AL11*2))*((AK11*Y11/2-AM11*Z11)*(F11-AF11)*PI()/180+(AM11*Y11-AK11*Z11)*(SIN(RADIANS(F11))-SIN(RADIANS(AF11)))-AM11*AA11*(COS(RADIANS(F11))-COS(RADIANS(AF11)))+(AK11*Y11/2)*(SIN(RADIANS(F11))*COS(RADIANS(F11))-SIN(RADIANS(AF11))*COS(RADIANS(AF11)))+(AK11*AA11/2)*((SIN(RADIANS(F11))^2)-(SIN(RADIANS(AF11))^2))) -> 0.6369296381 | AS11: =IF(AN11=1,MAX(0,AP11),MAX(0,AQ11+AR11)) -> 0.6369296381
B12: F (16) | C12: 47 | D12: 7996000 | E12: =(23.45*(SIN(RADIANS(360*(284+C12)/365)))) -> -12.95460809 | F12: 77.8876669 | G12: 34.67539191 | H12: =1367*(1+0.034*(COS(RADIANS(360*C12)/365)))*SIN(RADIANS(G12)) -> 795.9722939 | I12: 19184868.88 | J12: =D12/I12 -> 0.4167867942 | K12: =1-1.13*J12 -> 0.5290309225 | L12: =1-K12 -> 0.4709690775 | M12: =F12 -> 77.8876669 | N12: 88.29498603 | O12: =MIN(M12:N12) -> 77.8876669 | P12: 1.816861211 | Q12: 0.8556854485 | R12: =K12*(1+COS(RADIANS(b)))/2 -> 0.4811938421 | S12: =_r*(1-COS(RADIANS(b)))/2 -> 0.05425438671 | T12: =Q12+R12+S12 -> 1.391133677 | U12: 11123504.88 | V12: =U12/3600000 -> 3.089862468 | Y12: 1.342348833 | Z12: 0.03993986559 | AA12: 0 | AB12: =DEGREES(ACOS((Y12*Z12+AA12*SQRT(Y12^2-Z12^2+AA12^2))/(Y12^2+AA12^2))) -> 88.29498603 | AC12: =ABS(MIN(F12,AB12)) -> 77.8876669 | AD12: =IF(AND(Y12>0,Z12>0),1,0) -> 1 | AE12: =IF(Y12>=Z12,1,0) -> 1 | AF12: =IF(OR(AD12=1,AE12=1),-AC12,AC12) -> -77.8876669 | AG12: =DEGREES(ACOS((Y12*Z12-AA12*SQRT(Y12^2-Z12^2+AA12^2))/(Y12^2+AA12^2))) -> 88.29498603 | AH12: =ABS(MIN(F12,AG12)) -> 77.8876669 | AI12: =IF(OR(AD12=1,AE12=1),AH12,-AH12) -> 77.8876669 | AJ12: =0.409+0.506*SIN(RADIANS(F12-60)) -> 0.5644187991 | AK12: =0.6609-0.4767*(SIN(RADIANS(F12-60))) -> 0.514480748 | AL12: =SIN(RADIANS(F12))-(PI()*F12/180)*COS(RADIANS(F12)) -> 0.6924973011 | AM12: 0.03538787659 | AN12: =IF(AI12>=AF12,1,0) -> 1 | AO12: =IF(AF12>AI12,1,0) -> 0 | AP12: 0.8154307171 | AQ12: 0.8154307171 | AR12: =(1/(AL12*2))*((AK12*Y12/2-AM12*Z12)*(F12-AF12)*PI()/180+(AM12*Y12-AK12*Z12)*(SIN(RADIANS(F12))-SIN(RADIANS(AF12)))-AM12*AA12*(COS(RADIANS(F12))-COS(RADIANS(AF12)))+(AK12*Y12/2)*(SIN(RADIANS(F12))*COS(RADIANS(F12))-SIN(RADIANS(AF12))*COS(RADIANS(AF12)))+(AK12*AA12/2)*((SIN(RADIANS(F12))^2)-(SIN(RADIANS(AF12))^2))) -> 0.8154307171 | AS12: =IF(AN12=1,MAX(0,AP12),MAX(0,AQ12+AR12)) -> 0.8154307171
B13: M (16) | C13: 75 | D13: 10780000 | E13: -2.417734805 | F13: 87.79276927 | G13: 45.21226519 | H13: =1367*(1+0.034*(COS(RADIANS(360*C13)/365)))*SIN(RADIANS(G13)) -> 979.2968283 | I13: 26337581.59 | J13: =D13/I13 -> 0.4093010576 | K13: 0.5374898049 | L13: 0.4625101951 | M13: 87.79276927 | N13: 89.68709096 | O13: 87.79276927 | P13: 1.41465363 | Q13: 0.6542917263 | R13: 0.4888878387 | S13: 0.05425438671 | T13: 1.197433952 | U13: 12908338 | V13: 3.585649444 | Y13: 1.342348833 | Z13: 0.007330923796 | AA13: 0 | AB13: 89.68709096 | AC13: 87.79276927 | AD13: 1 | AE13: 1 | AF13: -87.79276927 | AG13: 89.68709096 | AH13: 87.79276927 | AI13: 87.79276927 | AJ13: 0.6449351512 | AK13: 0.4386267063 | AL13: 0.940244235 | AM13: 0.1074453463 | AN13: 1 | AO13: 0 | AP13: 0.6403925962 | AQ13: 0.6403925962 | AR13: 0.6403925962 | AS13: 0.6403925962
B14: A (15) | C14: 105 | D14: 14386000 | E14: 9.414893347 | F14: 98.69947011 | G14: 57.04489335 | H14: 1137.900615 | I14: 33952861.68 | J14: 0.4237050808 | K14: 0.5212132587 | L14: 0.4787867413 | M14: 98.69947011 | N14: 91.2289431 | O14: 91.2289431 | P14: 1.111152575 | Q14: 0.5320051207 | R14: 0.4740830825 | S14: 0.05425438671 | T14: 1.06034259 | U14: 15254088.5 | V14: 4.237246805 | Y14: 1.342348833 | Z14: -0.02878997119 | AA14: 0 | AB14: 91.2289431 | AC14: 91.2289431 | AD14: 0 | AE14: 1 | AF14: -91.2289431 | AG14: 91.2289431 | AH14: 91.2289431 | AI14: 91.2289431 | AJ14: 0.7253691319 | AK14: 0.3628502664 | AL14: 1.249046074 | AM14: 0.2041558733 | AN14: 1 | AO14: 0 | AP14: 0.5414810837 | AQ14: 0.5407296525 | AR14: 0.5407296525 | AS14: 0.5414810837
B15: M (15) | C15: 135 | D15: 18110000 | E15: 18.79191752 | F15: 108.0823118 | G15: 66.42191752 | H15: 1223.743633 | I15: 39452995.15 | J15: 0.4590272534 | K15: 0.4812992037 | L15: 0.5187007963 | M15: 108.0823118 | N15: 92.52253077 | O15: 92.52253077 | P15: 0.9351193698 | Q15: 0.4850471618 | R15: 0.4377782151 | S15: 0.05425438671 | T15: 0.9770797636 | U15: 17694914.52 | V15: 4.915254033 | Y15: 1.342348833 | Z15: -0.05907978677 | AA15: 0 | AB15: 92.52253077 | AC15: 92.52253077 | AD15: 0 | AE15: 1 | AF15: -92.52253077 | AG15: 92.52253077 | AH15: 92.52253077 | AI15: 92.52253077 | AJ15: 0.7855173019 | AK15: 0.3061849845 | AL15: 1.536115622 | AM15: 0.3042180983 | AN15: 1 | AO15: 0 | AP15: 0.5063956211 | AQ15: 0.5026335406 | AR15: 0.5026335406 | AS15: 0.5063956211
B16: J (11) | C16: 162 | D16: 21434000 | E16: 23.085911 | F16: 112.8802622 | G16: 70.715911 | H16: 1249.134473 | I16: 41737717.67 | J16: 0.5135402987 | K16: 0.4196994624 | L16: 0.5803005376 | M16: 112.8802622 | N16: 93.16047346 | O16: 93.16047346 | P16: 0.865656815 | Q16: 0.5023411151 | R16: 0.3817485675 | S16: 0.05425438671 | T16: 0.9383440693 | U16: 20112466.78 | V16: 5.586796328 | Y16: 1.342348833 | Z16: -0.07400731428 | AA16: 0 | AB16: 93.16047346 | AC16: 93.16047346 | AD16: 0 | AE16: 1 | AF16: -93.16047346 | AG16: 93.16047346 | AH16: 93.16047346 | AI16: 93.16047346 | AJ16: 0.812472298 | AK16: 0.2807908212 | AL16: 1.687319794 | AM16: 0.3927728356 | AN16: 1 | AO16: 0 | AP16: 0.527760881 | AQ16: 0.5204854754 | AR16: 0.5204854754 | AS16: 0.527760881
B17: J (17) | C17: 198 | D17: 22964000 | E17: 21.18369356 | F17: 110.7019791 | G17: 68.81369356 | H17: 1232.801685 | I17: 40541075.97 | J17: 0.5664378522 | K17: =1-1.13*J17 -> 0.359925227 | L17: 0.640074773 | M17: 110.7019791 | N17: 92.87328382 | O17: 92.87328382 | P17: 0.8957543593 | Q17: 0.5733497682 | R17: 0.3273793563 | S17: 0.05425438671 | T17: 0.9549835111 | U17: 21930241.35 | V17: 6.091733708 | Y17: 1.342348833 | Z17: -0.06728825066 | AA17: 0 | AB17: 92.87328382 | AC17: 92.87328382 | AD17: 0 | AE17: 1 | AF17: -92.87328382 | AG17: 92.87328382 | AH17: 92.87328382 | AI17: 92.87328382 | AJ17: 0.8005742165 | AK17: 0.2919999427 | AL17: 1.618447955 | AM17: 0.4406489894 | AN17: 1 | AO17: 0 | AP17: 0.5970609026 | AQ17: 0.5898074273 | AR17: 0.5898074273 | AS17: 0.5970609026
B18: A (16) | C18: 228 | D18: 20080000 | E18: 13.45495968 | F18: 102.6052922 | G18: 61.08495968 | H18: 1167.756818 | I18: 36029798.76 | J18: 0.5573164628 | K18: 0.3702323971 | L18: 0.6297676029 | M18: 102.6052922 | N18: 91.77332687 | O18: 91.77332687 | P18: 1.030388957 | Q18: 0.6489055838 | R18: 0.336754511 | S18: 0.05425438671 | T18: 1.039914481 | U18: 20881482.79 | V18: 5.800411886 | Y18: 1.342348833 | Z18: -0.04153959072 | AA18: 0 | AB18: 91.77332687 | AC18: 91.77332687 | AD18: 0 | AE18: 1 | AF18: -91.77332687 | AG18: 91.77332687 | AH18: 91.77332687 | AI18: 91.77332687 | AJ18: 0.7515336427 | AK18: 0.3382008152 | AL18: 1.36670899 | AM18: 0.3813012457 | AN18: 1 | AO18: 0 | AP18: 0.6640540472 | AQ18: 0.6611865834 | AR18: 0.6611865834 | AS18: 0.6640540472
B19: S (15) | C19: 258 | D19: 14452000 | E19: 2.216886783 | F19: 92.02359862 | G19: 49.84688678 | H19: 1035.316964 | I19: 29044725.99 | J19: 0.4975774262 | K19: =1-1.13*J19 -> 0.4377375084 | L19: 0.5622624916 | M19: 92.02359862 | N19: 90.28688744 | O19: 90.28688744 | P19: 1.281068222 | Q19: 0.7202966105 | R19: 0.3981555417 | S19: 0.05425438671 | T19: 1.172706539 | U19: 16947954.9 | V19: 4.70776525 | Y19: 1.342348833 | Z19: -0.006721287563 | AA19: 0 | AB19: 90.28688744 | AC19: 90.28688744 | AD19: 0 | AE19: 1 | AF19: -90.28688744 | AG19: 90.28688744 | AH19: 90.28688744 | AI19: 90.28688744 | AJ19: 0.677315865 | AK19: 0.4081210023 | AL19: 1.056090074 | AM19: 0.2395783566 | AN19: 1 | AO19: 0 | AP19: 0.716934472 | AQ19: 0.7168675394 | AR19: 0.7168675394 | AS19: 0.716934472
B20: O (15) | C20: 288 | D20: 10034000 | E20: -9.599397234 | F20: 81.12545654 | G20: 38.03060277 | H20: 849.1383005 | I20: 21250703.89 | J20: 0.4721725949 | K20: =1-1.13*J20 -> 0.4664449677 | L20: 0.5335550323 | M20: 81.12545654 | N20: 88.74651716 | O20: 81.12545654 | P20: 1.669321891 | Q20: 0.8906750956 | R20: 0.4242671583 | S20: 0.05425438671 | T20: 1.369196641 | U20: 13738519.09 | V20: 3.816255303 | Y20: 1.342348833 | Z20: 0.02936476336 | AA20: 0 | AB20: 88.74651716 | AC20: 81.12545654 | AD20: 1 | AE20: 1 | AF20: -81.12545654 | AG20: 88.74651716 | AH20: 81.12545654 | AI20: 81.12545654 | AJ20: 0.5913681098 | AK20: 0.4890919408 | AL20: 0.7695946268 | AM20: 0.1249231421 | AN20: 1 | AO20: 0 | AP20: 0.8590606685 | AQ20: 0.8590606685 | AR20: 0.8590606685 | AS20: 0.8590606685
B21: N (14) | C21: 318 | D21: 5170000 | E21: -18.91195474 | F21: 71.7890302 | G21: 28.71804526 | H21: 672.2565431 | I21: 15015427.91 | J21: 0.3443125319 | K21: =1-1.13*J21 -> 0.610926839 | L21: 0.389073161 | M21: 71.7890302 | N21: 87.46011603 | O21: 71.7890302 | P21: 2.15025684 | Q21: 0.8366072256 | R21: 0.555684404 | S21: 0.05425438671 | T21: 1.446546016 | U21: 7478642.904 | V21: 2.077400807 | Y21: 1.342348833 | Z21: 0.05948594808 | AA21: 0 | AB21: 87.46011603 | AC21: 71.7890302 | AD21: 1 | AE21: 1 | AF21: -71.7890302 | AG21: 87.46011603 | AH21: 71.7890302 | AI21: 71.7890302 | AJ21: 0.5123801693 | AK21: 0.5635060737 | AL21: 0.5583427732 | AM21: -0.09854666965 | AN21: 1 | AO21: 0 | AP21: 0.7808881643 | AQ21: 0.7808881643 | AR21: 0.7808881643 | AS21: 0.7808881643
B22: D (10) | C22: 344 | D22: 2910000 | E22: -23.04962764 | F22: 67.16216921 | G22: 24.58037236 | H22: 586.7138865 | I22: 12305972.06 | J22: 0.2364705516 | K22: =1-1.13*J22 -> 0.7327882767 | L22: 0.2672117233 | M22: 67.16216921 | N22: 86.84507921 | O22: 67.16216921 | P22: 2.465498946 | Q22: 0.658810222 | R22: 0.6665266458 | S22: 0.05425438671 | T22: 1.379591255 | U22: 4014610.551 | V22: 1.115169597 | Y22: 1.342348833 | Z22: 0.07387742171 | AA22: 0 | AB22: =DEGREES(ACOS((Y22*Z22+AA22*SQRT(Y22^2-Z22^2+AA22^2))/(Y22^2+AA22^2))) -> 86.84507921 | AC22: 67.16216921 | AD22: 1 | AE22: 1 | AF22: -67.16216921 | AG22: 86.84507921 | AH22: 67.16216921 | AI22: 67.16216921 | AJ22: 0.4720871393 | AK22: 0.6014659302 | AL22: 0.4666475362 | AM22: -0.2607011374 | AN22: 1 | AO22: 0 | AP22: 0.5929736589 | AQ22: 0.5929736589 | AR22: 0.5929736589 | AS22: 0.5929736589
D23: =SUM(D11:D22) -> 152024000 | U23: =SUM(U11:U22) -> 167218955.6 | V23: =SUM(V11:V22) -> 46.44970989

Sheet Angulo_Incidencia
B1: Implementa el efecto de la inclinación sobre el producto "ta" (J. A. Duffie & W. A. Beckman, sección 5.6, "Angular depence of ta)
C3: І Φ - β І = | D3: =lat-b -> 7.37
C4: w = | D4: 37.5 | E4: (2,5 horas antes del mediodía solar = 09.30 o 14.30 hora solar)
H6: Nueva | L6: Nueva | P6: Nueva
B7: MES | C7: dia | D7: d (º) | E7: θb mensual | F7: (ta)b / (ta)n | G7: Comp. | H7: Comp. | I7: θe (difusa) | J7: (ta)d / (ta)n | K7: Comp. | L7: Comp. | M7: θe (reflejada) | N7: (ta)r / (ta)n | O7: Comp. | P7: Comp. | Q7: R | R7: R | S7: (ta) / (ta)n
C8: n | D8: 2.2 | G8: directa | H8: directa | K8: difusa | L8: difusa | O8: reflejada | P8: reflejada | Q8: 2.18 | R8: nueva
B9: G (17) | C9: 17 | D9: =Radiación!E11 -> -20.91696257 | E9: =DEGREES(ACOS(SIN(RADIANS($D$3))*SIN(RADIANS(D9))+COS(RADIANS($D$3))*COS(RADIANS(omega))*COS(RADIANS(D9)))) -> 46.43701838 | F9: 0.96 | G9: =Radiación!Q11 -> 0.697685794 | H9: =G9*F9 -> 0.6697783623 | I9: 56.5 | J9: 0.88 | K9: =Radiación!R11 -> 0.6326853102 | L9: =K9*J9 -> 0.5567630729 | M9: 71 | N9: 0.66 | O9: =Radiación!S11 -> 0.05425438671 | P9: =O9*N9 -> 0.03580789523 | Q9: =Radiación!T11 -> 1.384625491 | R9: =H9+L9+P9 -> 1.26234933 | S9: =R9/Q9 -> 0.9116900842
B10: F (16) | C10: 47 | D10: =Radiación!E12 -> -12.95460809 | E10: =DEGREES(ACOS(SIN(RADIANS($D$3))*SIN(RADIANS(D10))+COS(RADIANS($D$3))*COS(RADIANS(omega))*COS(RADIANS(D10)))) -> 42.43727308 | F10: 0.97 | G10: =Radiación!Q12 -> 0.8556854485 | H10: =G10*F10 -> 0.8300148851 | I10: 56.5 | J10: 0.88 | K10: =Radiación!R12 -> 0.4811938421 | L10: =K10*J10 -> 0.423450581 | M10: 71 | N10: 0.66 | O10: =Radiación!S12 -> 0.05425438671 | P10: =O10*N10 -> 0.03580789523 | Q10: =Radiación!T12 -> 1.391133677 | R10: =H10+L10+P10 -> 1.289273361 | S10: =R10/Q10 -> 0.9267789159
B11: M (16) | C11: 75 | D11: =Radiación!E13 -> -2.417734805 | E11: 38.67645251 | F11: 0.97 | G11: =Radiación!Q13 -> 0.6542917263 | H11: 0.6346629745 | I11: 56.5 | J11: 0.88 | K11: =Radiación!R13 -> 0.4888878387 | L11: 0.4302212981 | M11: 71 | N11: 0.66 | O11: =Radiación!S13 -> 0.05425438671 | P11: 0.03580789523 | Q11: =Radiación!T13 -> 1.197433952 | R11: 1.100692168 | S11: 0.9192090856
B12: A (15) | C12: 105 | D12: =Radiación!E14 -> 9.414893347 | E12: 37.13793881 | F12: 0.97 | G12: =Radiación!Q14 -> 0.5320051207 | H12: 0.516044967 | I12: 56.5 | J12: 0.88 | K12: =Radiación!R14 -> 0.4740830825 | L12: 0.4171931126 | M12: 71 | N12: 0.66 | O12: =Radiación!S14 -> 0.05425438671 | P12: 0.03580789523 | Q12: =Radiación!T14 -> 1.06034259 | R12: 0.9690459749 | S12: 0.9138989456
B13: M (15) | C13: 135 | D13: =Radiación!E15 -> 18.79191752 | E13: 38.17001628 | F13: 0.96 | G13: =Radiación!Q15 -> 0.4850471618 | H13: 0.4656452753 | I13: 56.5 | J13: 0.88 | K13: =Radiación!R15 -> 0.4377782151 | L13: 0.3852448293 | M13: 71 | N13: 0.66 | O13: =Radiación!S15 -> 0.05425438671 | P13: 0.03580789523 | Q13: =Radiación!T15 -> 0.9770797636 | R13: 0.8866979999 | S13: 0.9074980701
B14: J (11) | C14: 162 | D14: =Radiación!E16 -> 23.085911 | E14: 39.27748042 | F14: 0.95 | G14: =Radiación!Q16 -> 0.5023411151 | H14: 0.4772240593 | I14: 56.5 | J14: 0.88 | K14: =Radiación!R16 -> 0.3817485675 | L14: 0.3359387394 | M14: 71 | N14: 0.66 | O14: =Radiación!S16 -> 0.05425438671 | P14: 0.03580789523 | Q14: =Radiación!T16 -> 0.9383440693 | R14: 0.848970694 | S14: 0.9047541533
B15: J (17) | C15: 198 | D15: =Radiación!E17 -> 21.18369356 | E15: 38.7406844 | F15: 0.95 | G15: =Radiación!Q17 -> 0.5733497682 | H15: 0.5446822798 | I15: 56.5 | J15: 0.88 | K15: =Radiación!R17 -> 0.3273793563 | L15: 0.2880938335 | M15: 71 | N15: 0.66 | O15: =Radiación!S17 -> 0.05425438671 | P15: 0.03580789523 | Q15: =Radiación!T17 -> 0.9549835111 | R15: 0.8685840085 | S15: 0.9095277545
B16: A (16) | C16: 228 | D16: =Radiación!E18 -> 13.45495968 | E16: 37.33989777 | F16: 0.96 | G16: =Radiación!Q18 -> 0.6489055838 | H16: 0.6229493604 | I16: 56.5 | J16: 0.88 | K16: =Radiación!R18 -> 0.336754511 | L16: 0.2963439697 | M16: 71 | N16: 0.66 | O16: =Radiación!S18 -> 0.05425438671 | P16: 0.03580789523 | Q16: =Radiación!T18 -> 1.039914481 | R16: 0.9551012253 | S16: 0.9184420857
B17: S (15) | C17: 258 | D17: =Radiación!E19 -> 2.216886783 | E17: 37.70481146 | F17: 0.97 | G17: =Radiación!Q19 -> 0.7202966105 | H17: 0.6986877121 | I17: 56.5 | J17: 0.88 | K17: =Radiación!R19 -> 0.3981555417 | L17: 0.3503768767 | M17: 71 | N17: 0.66 | O17: =Radiación!S19 -> 0.05425438671 | P17: 0.03580789523 | Q17: =Radiación!T19 -> 1.172706539 | R17: 1.084872484 | S17: 0.9251014198
B18: O (15) | C18: 288 | D18: =Radiación!E20 -> -9.599397234 | E18: 41.0278197 | F18: 0.97 | G18: =Radiación!Q20 -> 0.8906750956 | H18: 0.8639548427 | I18: 56.5 | J18: 0.88 | K18: =Radiación!R20 -> 0.4242671583 | L18: 0.3733550993 | M18: 71 | N18: 0.66 | O18: =Radiación!S20 -> 0.05425438671 | P18: 0.03580789523 | Q18: =Radiación!T20 -> 1.369196641 | R18: 1.273117837 | S18: 0.9298283384
B19: N (14) | C19: 318 | D19: =Radiación!E21 -> -18.91195474 | E19: 45.3519783 | F19: 0.96 | G19: =Radiación!Q21 -> 0.8366072256 | H19: 0.8031429366 | I19: 56.5 | J19: 0.88 | K19: =Radiación!R21 -> 0.555684404 | L19: 0.4890022755 | M19: 71 | N19: 0.66 | O19: =Radiación!S21 -> 0.05425438671 | P19: 0.03580789523 | Q19: =Radiación!T21 -> 1.446546016 | R19: 1.327953107 | S19: 0.9180164975
B20: D (10) | C20: 344 | D20: =Radiación!E22 -> -23.04962764 | E20: 47.64191798 | F20: 0.95 | G20: =Radiación!Q22 -> 0.658810222 | H20: 0.6258697109 | I20: 56.5 | J20: 0.88 | K20: =Radiación!R22 -> 0.6665266458 | L20: 0.5865434483 | M20: 71 | N20: 0.66 | O20: =Radiación!S22 -> 0.05425438671 | P20: 0.03580789523 | Q20: =Radiación!T22 -> 1.379591255 | R20: 1.248221054 | S20: 0.9047759982
S21: =AVERAGE(S9:S20) -> 0.9157934457

Sheet Demanda_ACS
B2: Temperatura de referencia (ºC) | C2: 45
B3: Número de viviendas | C3: 10 | D3: FC = | E3: =IF(C3<=3,1,IF(C3<=10,0.95,IF(C3<=20,0.9,IF(C3<=50,0.85,IF(C3<=75,0.8,IF(C3<=100,0.75,0.7)))))) -> 0.95
B4: Número de habitantes por vivienda | C4: 6
B5: Consumo unitario diario medio para
B6: Litros por persona y día (a 45ºC) | C6: 100
C8: Días | D8: T agua fría | E8: Demanda ACS | F8: Demanda ACS
B9: Mes | C9: por | D9: (ºC) | E9: (MJ/mes) | F9: (kWh/mes)
C10: mes | D10: TAF | E10: 5.10 | F10: 5.10
B11: G | C11: 31 | D11: 5 | E11: =$C$6*C11*$C$4*$C$3*$E$3*4.186*(45-D11)/1000 -> 29586.648 | F11: =(E11*1000)/3600 -> 8218.513333
B12: F | C12: 28 | D12: 6 | E12: =$C$6*C12*$C$4*$C$3*$E$3*4.186*(45-D12)/1000 -> 26055.3384 | F12: =(E12*1000)/3600 -> 7237.594
B13: M | C13: 31 | D13: 7 | E13: 28107.3156 | F13: =(E13*1000)/3600 -> 7807.587667
B14: A | C14: 30 | D14: 9 | E14: 25769.016 | F14: 7158.06
B15: M | C15: 31 | D15: 11 | E15: 25148.6508 | F15: 6985.736333
B16: J | C16: 30 | D16: 13 | E16: 22905.792 | F16: 6362.72
B17: J | C17: 31 | D17: 16 | E17: 21450.3198 | F17: 5958.422167
B18: A | C18: 31 | D18: 16 | E18: 21450.3198 | F18: 5958.422167
B19: S | C19: 30 | D19: 14 | E19: 22189.986 | F19: 6163.885
B20: O | C20: 31 | D20: 11 | E20: 25148.6508 | F20: 6985.736333
B21: N | C21: 30 | D21: 7 | E21: 27200.628 | F21: 7555.73
B22: D | C22: 31 | D22: 6 | E22: 28846.9818 | F22: 8013.0505
B23: Total anual | C23: =SUM(C11:C22) -> 365 | E23: =SUM(E11:E22) -> 303859.647 | F23: =SUM(F11:F22) -> 84405.4575

Sheet Demanda_Climatización
D3: Área bruta cerramiento vertical exterior opaco | E3: 100 | F3: m2
D4: U cerramiento vertical exterior opaco | E4: 1.5 | F4: W/m2K
D5: Área neta huecos | E5: 20 | F5: m2
D6: U huecos | E6: 4 | F6: W/m2K
D7: Área de cubierta | E7: 25 | F7: m2
D8: U cubierta | E8: 1.5 | F8: W/m2K
D9: Área cerramientos en contacto con local no habitable | E9: 10 | F9: m2
D10: U cerramiento en contacto con local no habitable | E10: 2 | F10: W/m2K
D11: Volumen encerrado por cerramientos | E11: 100 | F11: m3
D12: Renovaciones por hora (infiltraciones) | E12: 1 | F12: 1/h
E13: ê
D14: UA estimado del edificio | E14: =(E3-E5)*E4+E5*E6+0.5*E9*E10+0.8*E7*E8+(E11*(E12/3600)*1.2)*1000 -> 273.3333333 | F14: W/K
D16: UA calculado del edificio | E16: 500 | F16: W/K
D17: Tipo de edificio
D18: Coeficiente de uso (u) | E18: 1 | M18: COPR = | N18: 0.75
D19: Coeficiente de intermitencia (i) | E19: 0.85
C22: MES | D22: DIAS | E22: T | F22: GD | G22: GD | H22: GD | I22: GD | J22: Demanda | K22: Demanda | L22: Demanda | M22: Demanda | N22: Demanda | O22: Demanda
E23: ambiente | F23: diarios | G23: mensuales | H23: mensuales | I23: mensuales | J23: Calefacción | K23: Calefacción | L23: Refrigeración | M23: Refrigeración | N23: de Calor | O23: de Calor
H24: calefacción | I24: refrigeración | J24: (MJ/mes) | K24: (kWh/mes) | L24: (MJ/mes) | M24: (kWh/mes) | N24: Total | O24: Total
D25: NM | E25: ºC | F25: (20ºC-Ta) | G25: NM·GD diarios | H25: BBDD_Clima | I25: BBDD_Clima | J25: 5.1 | K25: 5.1 | L25: 5.1 | M25: 5.1 | N25: (MJ/mes) | O25: (kWh/mes)
C26: G | D26: 31 | E26: 2.5 | F26: =MAX(0,20-E26) -> 17.5 | G26: =F26*D26 -> 542.5 | H26: 387 | J26: =us*int*ua*H26*3600*24/1000000 -> 14210.64 | K26: =J26*1000/3600 -> 3947.4 | L26: =ua*I26*3600*24/1000000 -> 0 | M26: =L26*1000/3600 -> 0 | N26: =J26+L26/copabs -> 14210.64 | O26: =K26+M26/copabs -> 3947.4
C27: F | D27: 28 | E27: 3.8 | F27: =MAX(0,20-E27) -> 16.2 | G27: 453.6 | H27: 335.3 | J27: 12312.216 | K27: =J27*1000/3600 -> 3420.06 | L27: 0 | M27: =L27*1000/3600 -> 0 | N27: 12312.216 | O27: 3420.06
C28: M | D28: 31 | E28: 7.1 | F28: 12.9 | G28: 399.9 | H28: 328.2 | J28: 12051.504 | K28: =J28*1000/3600 -> 3347.64 | L28: 0 | M28: 0 | N28: 12051.504 | O28: 3347.64
C29: A | D29: 30 | E29: 9.2 | F29: 10.8 | G29: 324 | H29: 241.1 | J29: 8853.192 | K29: 2459.22 | L29: 0 | M29: 0 | N29: 8853.192 | O29: 2459.22
C30: M | D30: 31 | E30: 12.2 | F30: 7.8 | G30: 241.8 | H30: 145.2 | J30: 5331.744 | K30: 1481.04 | L30: 0 | M30: 0 | N30: 5331.744 | O30: 1481.04
C31: J | D31: 30 | E31: 16.2 | F31: 3.8 | G31: 114 | H31: 50.5 | J31: 1854.36 | K31: 515.1 | L31: 0 | M31: 0 | N31: 1854.36 | O31: 515.1
C32: J | D32: 31 | E32: 19.2 | F32: 0.8 | G32: 24.8 | H32: 6.8 | J32: 249.696 | K32: 69.36 | L32: 0 | M32: 0 | N32: 249.696 | O32: 69.36
C33: A | D33: 31 | E33: 18.8 | F33: 1.2 | G33: 37.2 | H33: 10.9 | J33: 400.248 | K33: 111.18 | L33: 0 | M33: 0 | N33: 400.248 | O33: 111.18
C34: S | D34: 30 | E34: 16.2 | F34: 3.8 | G34: 114 | H34: 52.8 | J34: 1938.816 | K34: 538.56 | L34: 0 | M34: 0 | N34: 1938.816 | O34: 538.56
C35: O | D35: 31 | E35: 11.3 | F35: 8.7 | G35: 269.7 | H35: 148.7 | J35: 5460.264 | K35: 1516.74 | L35: 0 | M35: 0 | N35: 5460.264 | O35: 1516.74
C36: N | D36: 30 | E36: 6.5 | F36: 13.5 | G36: 405 | H36: 284.6 | J36: 10450.512 | K36: 2902.92 | L36: 0 | M36: 0 | N36: 10450.512 | O36: 2902.92
C37: D | D37: 31 | E37: 3.4 | F37: 16.6 | G37: 514.6 | H37: 392.4 | J37: 14408.928 | K37: 4002.48 | L37: 0 | M37: 0 | N37: 14408.928 | O37: 4002.48
C38: Totales | D38: =SUM(D26:D37) -> 365 | G38: =SUM(G26:G37) -> 3441.1 | H38: =SUM(H26:H37) -> 2383.5 | J38: =SUM(J26:J37) -> 87522.12 | K38: 24311.7 | L38: 0 | M38: 0 | N38: 87522.12 | O38: 24311.7

Sheet Demanda_Piscinas
B1: Implementa el cálculo de las necesidades térmicas para el calentamiento de piscinas (referencia perdida, aunque similar a la de J. A. Duffie & W. A. Beckman, sección 9.7, "Swimming pool heating loads")
B2: Área de piscina | C2: 50 | E2: m2
B3: Absortancia agua | C3: 0.8 | E3: -
B4: Emitancia de la piscina | C4: 1 | E4: -
B5: Temperatura piscina | C5: 25 | E5: ºC
B6: Humedad relativa media | C6: 50 | E6: %
B7: Velocidad del viento | C7: 4.4 | E7: m/s | G7: Viento superficie | H7: =C7/7.5 -> 0.5866666667 | I7: m/s
B8: Grado de humedad sat. | C8: 0.02 | E8: kgw/kga
E11: Hoja Radiación
B12: MES | C12: DIAS | D12: Tambiente | E12: H (MJ/dia-m2) | F12: KT = H / He | G12: HP (MJ/mes) | H12: Tr (ºC) | I12: TCielo (K) | J12: TCielo ponderada | K12: Segundos | L12: LP Rad (MJ/mes) | M12: wa (kgw/kga) | N12: LP Evap (MJ/mes) | O12: LP Conv (MJ/mes) | P12: LP (MJ/mes)
C13: NM | D13: Anexo | E13: Atlas de Radiación | F13: 2.19 | H13: Diagrama psicrométrico | J13: según KT | K13: por mes | M13: Diagrama psicrométrico
B14: G | C14: 31 | D14: =Demanda_Climatización!E26 -> 2.5 | E14: =Radiación!D11/1000000 -> 3.708 | F14: =Radiación!J11 -> 0.2693958749 | G14: =absortancia*areapiscina*E14*C14 -> 4597.92 | H14: -5 | I14: =(D14+273)*(0.711+0.0056*H14+0.000073*H14^2)^0.25 -> 250.6204496 | J14: =(1-F14)*I14+F14*(D14+273) -> 257.3228978 | K14: =C14*24*3600 -> 2678400 | L14: =(emitancia*areapiscina*0.0000000567*((tpiscina+273)^4-J14^4)/1000000*K14) -> 26589.44207 | M14: 0.0025 | N14: =areapiscina*101.3*(35*$H$7+43*((tpiscina+273)-(D14+273))^0.33)*(graupiscina-M14)*K14/1000000 -> 33396.85858 | O14: =N14*0.0006*(((tpiscina+273)-(D14+273))/(graupiscina-M14)) -> 25763.2909 | P14: =MAX(0,(L14+N14+O14-G14)) -> 81151.67155
B15: F | C15: 28 | D15: =Demanda_Climatización!E27 -> 3.8 | E15: =Radiación!D12/1000000 -> 7.996 | F15: =Radiación!J12 -> 0.4167867942 | G15: 8955.52 | H15: -2 | I15: 253.1948481 | J15: 263.0331637 | K15: =C15*24*3600 -> 2419200 | L15: 21256.92962 | M15: 0.003 | N15: =areapiscina*101.3*(35*$H$7+43*((tpiscina+273)-(D15+273))^0.33)*(graupiscina-M15)*K15/1000000 -> 28816.34587 | O15: =N15*0.0006*(((tpiscina+273)-(D15+273))/(graupiscina-M15)) -> 21561.40703 | P15: =MAX(0,(L15+N15+O15-G15)) -> 62679.16252
B16: M | C16: 31 | D16: =Demanda_Climatización!E28 -> 7.1 | E16: =Radiación!D13/1000000 -> 10.78 | F16: =Radiación!J13 -> 0.4093010576 | G16: 13367.2 | H16: 2 | I16: 258.2387254 | J16: 267.1865682 | K16: 2678400 | L16: 21183.75868 | M16: 0.004 | N16: 28638.50313 | O16: 19223.59522 | P16: 55678.65703
B17: A | C17: 30 | D17: =Demanda_Climatización!E29 -> 9.2 | E17: =Radiación!D14/1000000 -> 14.386 | F17: =Radiación!J14 -> 0.4237050808 | G17: 17263.2 | H17: 8 | I17: 263.5286374 | J17: 271.4397886 | K17: 2592000 | L17: 18058.29818 | M17: 0.005 | N17: 25097.39643 | O17: 15861.55454 | P17: 41754.04915
B18: M | C18: 31 | D18: =Demanda_Climatización!E30 -> 12.2 | E18: =Radiación!D15/1000000 -> 18.11 | F18: =Radiación!J15 -> 0.4590272534 | G18: 22456.4 | H18: 11 | I18: 268.1467009 | J18: 275.97463 | K18: 2678400 | L18: 15835.75757 | M18: 0.0065 | N18: 22026.22516 | O18: 12530.47476 | P18: 27936.05749
B19: J | C19: 30 | D19: =Demanda_Climatización!E31 -> 16.2 | E19: =Radiación!D16/1000000 -> 21.434 | F19: =Radiación!J16 -> 0.5135402987 | G19: 25720.8 | H19: 14 | I19: 273.8248519 | J19: 281.72061 | K19: 2592000 | L19: 11662.58302 | M19: 0.00825 | N19: 16763.11696 | O19: 7532.70277 | P19: 10237.60275
B20: J | C20: 31 | D20: =Demanda_Climatización!E32 -> 19.2 | E20: =Radiación!D17/1000000 -> 22.964 | F20: =Radiación!J17 -> 0.5664378522 | G20: 28475.36 | H20: 9 | I20: 273.4786017 | J20: 284.0831103 | K20: 2678400 | L20: 10426.6277 | M20: 0.01 | N20: 13205.25646 | O20: 4595.429249 | P20: 0
B21: A | C21: 31 | D21: =Demanda_Climatización!E33 -> 18.8 | E21: =Radiación!D18/1000000 -> 20.08 | F21: =Radiación!J18 -> 0.5573164628 | G21: 24899.2 | H21: 10 | I21: 273.7238264 | J21: 283.7979755 | K21: 2678400 | L21: 10624.88129 | M21: 0.0085 | N21: 15452.68401 | O21: 4998.60735 | P21: 6176.97265
B22: S | C22: 30 | D22: =Demanda_Climatización!E34 -> 16.2 | E22: =Radiación!D19/1000000 -> 14.452 | F22: =Radiación!J19 -> 0.4975774262 | G22: 17342.4 | H22: 5 | I22: 268.3040301 | J22: 278.701393 | K22: 2592000 | L22: 13615.17067 | M22: 0.0076 | N22: 17690.43832 | O22: 7532.70277 | P22: =MAX(0,(L22+N22+O22-G22)) -> 21495.91176
B23: O | C23: 31 | D23: =Demanda_Climatización!E35 -> 11.3 | E23: =Radiación!D20/1000000 -> 10.034 | F23: =Radiación!J20 -> 0.4721725949 | G23: 12442.16 | H23: 0 | I23: 261.0623601 | J23: 272.0345368 | K23: 2678400 | L23: 18297.77379 | M23: 0.0055 | N23: 24102.69146 | O23: 13663.73268 | P23: 43622.03792
B24: N | C24: 30 | D24: =Demanda_Climatización!E36 -> 6.5 | E24: =Radiación!D21/1000000 -> 5.17 | F24: =Radiación!J21 -> 0.3443125319 | G24: 6204 | H24: -4 | I24: 254.7167899 | J24: 263.2499597 | K24: 2592000 | L24: 22659.17221 | M24: 0.0035 | N24: 28844.7656 | O24: 19404.66049 | P24: 64704.59831
B25: D | C25: 31 | D25: =Demanda_Climatización!E37 -> 3.4 | E25: =Radiación!D22/1000000 -> 2.91 | F25: =Radiación!J22 -> 0.2364705516 | G25: 3608.4 | H25: -5 | I25: 251.4391734 | J25: 257.3416738 | K25: 2678400 | L25: 26579.72414 | M25: 0.0025 | N25: 33015.20633 | O25: 24450.11852 | P25: 80436.64899
B26: Totales | C26: =SUM(C14:C25) -> 365 | P26: =SUM(P14:P25) -> 495873.3701

Sheet Demandas_Totales
B3: MES | C3: ACS | D3: Calefacción | E3: Refrigeración con COPr | F3: Piscina | G3: R | I3: R | J3: Demanda total | K3: Demanda total
C4: (MJ/mes) | D4: (MJ/mes) | E4: (MJ/mes) | F4: (MJ/mes) | J4: (MJ/mes) | K4: (kWh/mes)
B5: G | C5: =Demanda_ACS!E11 -> 29586.648 | D5: =Demanda_Climatización!J26 -> 14210.64 | E5: =Demanda_Climatización!L26/copabs -> 0 | F5: =Demanda_Piscinas!P14 -> 81151.67155 | J5: 29586.648 | K5: =J5*1000/3600 -> 8218.513333
B6: F | C6: =Demanda_ACS!E12 -> 26055.3384 | D6: =Demanda_Climatización!J27 -> 12312.216 | E6: =Demanda_Climatización!L27/copabs -> 0 | F6: =Demanda_Piscinas!P15 -> 62679.16252 | J6: 26055.3384 | K6: =J6*1000/3600 -> 7237.594
B7: M | C7: =Demanda_ACS!E13 -> 28107.3156 | D7: =Demanda_Climatización!J28 -> 12051.504 | E7: =Demanda_Climatización!L28/copabs -> 0 | F7: =Demanda_Piscinas!P16 -> 55678.65703 | J7: 28107.3156 | K7: 7807.587667
B8: A | C8: =Demanda_ACS!E14 -> 25769.016 | D8: =Demanda_Climatización!J29 -> 8853.192 | E8: =Demanda_Climatización!L29/copabs -> 0 | F8: =Demanda_Piscinas!P17 -> 41754.04915 | J8: 25769.016 | K8: 7158.06
B9: M | C9: =Demanda_ACS!E15 -> 25148.6508 | D9: =Demanda_Climatización!J30 -> 5331.744 | E9: =Demanda_Climatización!L30/copabs -> 0 | F9: =Demanda_Piscinas!P18 -> 27936.05749 | J9: 25148.6508 | K9: 6985.736333
B10: J | C10: =Demanda_ACS!E16 -> 22905.792 | D10: =Demanda_Climatización!J31 -> 1854.36 | E10: =Demanda_Climatización!L31/copabs -> 0 | F10: =Demanda_Piscinas!P19 -> 10237.60275 | J10: 22905.792 | K10: 6362.72
B11: J | C11: =Demanda_ACS!E17 -> 21450.3198 | D11: =Demanda_Climatización!J32 -> 249.696 | E11: =Demanda_Climatización!L32/copabs -> 0 | F11: =Demanda_Piscinas!P20 -> 0 | J11: 21450.3198 | K11: 5958.422167
B12: A | C12: =Demanda_ACS!E18 -> 21450.3198 | D12: =Demanda_Climatización!J33 -> 400.248 | E12: =Demanda_Climatización!L33/copabs -> 0 | F12: =Demanda_Piscinas!P21 -> 6176.97265 | J12: 21450.3198 | K12: 5958.422167
B13: S | C13: =Demanda_ACS!E19 -> 22189.986 | D13: =Demanda_Climatización!J34 -> 1938.816 | E13: =Demanda_Climatización!L34/copabs -> 0 | F13: =Demanda_Piscinas!P22 -> 21495.91176 | J13: 22189.986 | K13: 6163.885
B14: O | C14: =Demanda_ACS!E20 -> 25148.6508 | D14: =Demanda_Climatización!J35 -> 5460.264 | E14: =Demanda_Climatización!L35/copabs -> 0 | F14: =Demanda_Piscinas!P23 -> 43622.03792 | J14: 25148.6508 | K14: 6985.736333
B15: N | C15: =Demanda_ACS!E21 -> 27200.628 | D15: =Demanda_Climatización!J36 -> 10450.512 | E15: =Demanda_Climatización!L36/copabs -> 0 | F15: =Demanda_Piscinas!P24 -> 64704.59831 | J15: 27200.628 | K15: 7555.73
B16: D | C16: =Demanda_ACS!E22 -> 28846.9818 | D16: =Demanda_Climatización!J37 -> 14408.928 | E16: =Demanda_Climatización!L37/copabs -> 0 | F16: =Demanda_Piscinas!P25 -> 80436.64899 | J16: 28846.9818 | K16: 8013.0505
B17: Totales | C17: =SUM(C5:C16) -> 303859.647 | D17: 87522.12 | E17: 0 | F17: =SUM(F5:F16) -> 495873.3701 | J17: 303859.647 | K17: 84405.4575

Sheet Curvas_f
C3: Captador | H3: Roca
C4: FR(ta) | H4: 0.784
C5: FRUL | H5: 4.9
C6: F'R/FR (Factor Capt-Inter.) | H6: 0.96
A9: TRUE | H9: Capacidad de almacenaje | K9: 75 | N9: l/m2
A11: FALSE | H11: Caudal circulante | K11: 10 | N11: l/s·m2
H12: Capacidad de almacenaje | K12: 0.26 | N12: m3/m2
C14: Rango de áreas de prueba (m2) | H14: 1 | I14: Mínimo | J14: 400 | K14: Máximo
Q19: Fracción | U19: Fracción | Y19: Fracción | AC19: Fracción | AG19: Fracción | AK19: Fracción | AO19: Fracción | AS19: Fracción | AW19: Fracción | BA19: Fracción
C20: Mes | D20: Días | E20: Segundos | F20: Ta | G20: (100-Ta) | H20: Demanda | I20: X/A | J20: XC/A | K20: HTOT | L20: (ta) / (ta)n | M20: Y/A | Q20: energía | U20: energía | Y20: energía | AC20: energía | AG20: energía | AK20: energía | AO20: energía | AS20: energía | AW20: energía | BA20: energía
J21: (ACS) | N21: Área = | O21: =H14 -> 1 | P21: m2 | Q21: solar | R21: Área = | S21: =O21+($J$14-$H$14)/9 -> 45.33333333 | T21: m2 | U21: solar | V21: Área = | W21: =S21+($J$14-$H$14)/9 -> 89.66666667 | X21: m2 | Y21: solar | Z21: Área = | AA21: =W21+($J$14-$H$14)/9 -> 134 | AB21: m2 | AC21: solar | AD21: Área = | AE21: =AA21+($J$14-$H$14)/9 -> 178.3333333 | AF21: m2 | AG21: solar | AH21: Área = | AI21: =AE21+($J$14-$H$14)/9 -> 222.6666667 | AJ21: m2 | AK21: solar | AL21: Área = | AM21: =AI21+($J$14-$H$14)/9 -> 267 | AN21: m2 | AO21: solar | AP21: Área = | AQ21: =AM21+($J$14-$H$14)/9 -> 311.3333333 | AR21: m2 | AS21: solar | AT21: Área = | AU21: =AQ21+($J$14-$H$14)/9 -> 355.6666667 | AV21: m2 | AW21: solar | AX21: Área = | AY21: =J14 -> 400 | AZ21: m2 | BA21: solar
E22: por mes | H22: (MJ/mes) | I22: (1/m2) | J22: (1/m2) | K22: (J/dia-m2) | M22: (1/m2) | N22: X | O22: Y | P22: f | Q22: (MJ/mes) | R22: X | S22: Y | T22: f | U22: (MJ/mes) | V22: X | W22: Y | X22: f | Y22: (MJ/mes) | Z22: X | AA22: Y | AB22: f | AC22: (MJ/mes) | AD22: X | AE22: Y | AF22: f | AG22: (MJ/mes) | AH22: X | AI22: Y | AJ22: f | AK22: (MJ/mes) | AL22: X | AM22: Y | AN22: f | AO22: (MJ/mes) | AP22: X | AQ22: Y | AR22: f | AS22: (MJ/mes) | AT22: X | AU22: Y | AV22: f | AW22: (MJ/mes) | AX22: X | AY22: Y | AZ22: f | BA22: (MJ/mes)
C23: G | D23: 31 | E23: =D23*24*3600 -> 2678400 | F23: =Demanda_Climatización!E26 -> 2.5 | G23: =100-(F23) -> 97.5 | H23: =Demandas_Totales!J5 -> 29586.648 | I23: =frul*fcb*G23*E23/(H23*1000000) -> 0.0415194508 | J23: 0.03330072874 | K23: =Radiación!U11 -> 5134191.32 | L23: =Angulo_Incidencia!S9 -> 0.9116900842 | M23: =frta*fcb*D23*K23*L23/(H23*1000000) -> 0.003691241877 | N23: =IF($A$9=TRUE,area1*J23*(cap_alm/75)^-0.25,area1*J23*((cau_circ/10.1)^0.28)*((cap_alm_aire/0.25)^-0.3)) -> 0.03330072874 | O23: =area1*M23 -> 0.003691241877 | P23: =IF($A$9=TRUE,(MIN(1,1.029*O23-0.065*N23-0.245*(O23)^2+0.0018*(N23)^2+0.0215*(O23)^3)),(MIN(1,1.04*O23-0.065*N23-0.159*(O23)^2+0.00187*(N23)^2+0.0095*(O23)^3))) -> 0.001632399503 | Q23: =IF(P23<0,0,$H23*P23) -> 48.29722949 | R23: =IF($A$9=TRUE,area2*J23*(cap_alm/75)^-0.25,area2*J23*((cau_circ/10.1)^0.28)*((cap_alm_aire/0.25)^-0.3)) -> 1.509633036 | S23: =area2*M23 -> 0.1673362984 | T23: =IF($A$9=TRUE,(MIN(1,1.029*S23-0.065*R23-0.245*(S23)^2+0.0018*(R23)^2+0.0215*(S23)^3)),(MIN(1,1.04*S23-0.065*R23-0.159*(S23)^2+0.00187*(R23)^2+0.0095*(S23)^3))) -> 0.07140547874 | U23: =IF(T23<0,0,$H23*T23) -> 2112.648765 | V23: =IF($A$9=TRUE,area3*J23*(cap_alm/75)^-0.25,area3*J23*((cau_circ/10.1)^0.28)*((cap_alm_aire/0.25)^-0.3)) -> 2.985965344 | W23: =area3*M23 -> 0.3309813549 | X23: =IF($A$9=TRUE,(MIN(1,1.029*W23-0.065*V23-0.245*(W23)^2+0.0018*(V23)^2+0.0215*(W23)^3)),(MIN(1,1.04*W23-0.065*V23-0.159*(W23)^2+0.00187*(V23)^2+0.0095*(W23)^3))) -> 0.1364809852 | Y23: =IF(X23<0,0,$H23*X23) -> 4038.014868 | Z23: =IF($A$9=TRUE,area4*J23*(cap_alm/75)^-0.25,area4*J23*((cau_circ/10.1)^0.28)*((cap_alm_aire/0.25)^-0.3)) -> 4.462297652 | AA23: =area4*M23 -> 0.4946264115 | AB23: =IF($A$9=TRUE,(MIN(1,1.029*AA23-0.065*Z23-0.245*(AA23)^2+0.0018*(Z23)^2+0.0215*(AA23)^3)),(MIN(1,1.04*AA23-0.065*Z23-0.159*(AA23)^2+0.00187*(Z23)^2+0.0095*(AA23)^3))) -> 0.1974242441 | AC23: =IF(AB23<0,0,$H23*AB23) -> 5841.121618 | AD23: =IF($A$9=TRUE,area5*J23*(cap_alm/75)^-0.25,area5*J23*((cau_circ/10.1)^0.28)*((cap_alm_aire/0.25)^-0.3)) -> 5.93862996 | AE23: =area5*M23 -> 0.658271468 | AF23: =IF($A$9=TRUE,(MIN(1,1.029*AE23-0.065*AD23-0.245*(AE23)^2+0.0018*(AD23)^2+0.0215*(AE23)^3)),(MIN(1,1.04*AE23-0.065*AD23-0.159*(AE23)^2+0.00187*(AD23)^2+0.0095*(AE23)^3))) -> 0.2548005808 | AG23: =IF(AF23<0,0,$H23*AF23) -> 7538.695094 | AH23: =IF($A$9=TRUE,area6*J23*(cap_alm/75)^-0.25,area6*J23*((cau_circ/10.1)^0.28)*((cap_alm_aire/0.25)^-0.3)) -> 7.414962267 | AI23: =area6*M23 -> 0.8219165245 | AJ23: =IF($A$9=TRUE,(MIN(1,1.029*AI23-0.065*AH23-0.245*(AI23)^2+0.0018*(AH23)^2+0.0215*(AI23)^3)),(MIN(1,1.04*AI23-0.065*AH23-0.159*(AI23)^2+0.00187*(AH23)^2+0.0095*(AI23)^3))) -> 0.3091753204 | AK23: =IF(AJ23<0,0,$H23*AJ23) -> 9147.461375 | AL23: =IF($A$9=TRUE,area7*J23*(cap_alm/75)^-0.25,area7*J23*((cau_circ/10.1)^0.28)*((cap_alm_aire/0.25)^-0.3)) -> 8.891294575 | AM23: =area7*M23 -> 0.9855615811 | AN23: =IF($A$9=TRUE,(MIN(1,1.029*AM23-0.065*AL23-0.245*(AM23)^2+0.0018*(AL23)^2+0.0215*(AM23)^3)),(MIN(1,1.04*AM23-0.065*AL23-0.159*(AM23)^2+0.00187*(AL23)^2+0.0095*(AM23)^3))) -> 0.3611137882 | AO23: =IF(AN23<0,0,$H23*AN23) -> 10684.14654 | AP23: =IF($A$9=TRUE,area8*J23*(cap_alm/75)^-0.25,area8*J23*((cau_circ/10.1)^0.28)*((cap_alm_aire/0.25)^-0.3)) -> 10.36762688 | AQ23: =area8*M23 -> 1.149206638 | AR23: =IF($A$9=TRUE,(MIN(1,1.029*AQ23-0.065*AP23-0.245*(AQ23)^2+0.0018*(AP23)^2+0.0215*(AQ23)^3)),(MIN(1,1.04*AQ23-0.065*AP23-0.159*(AQ23)^2+0.00187*(AP23)^2+0.0095*(AQ23)^3))) -> 0.4111813095 | AS23: =IF(AR23<0,0,$H23*AR23) -> 12165.47667 | AT23: =IF($A$9=TRUE,area9*J23*(cap_alm/75)^-0.25,area9*J23*((cau_circ/10.1)^0.28)*((cap_alm_aire/0.25)^-0.3)) -> 11.84395919 | AU23: =area9*M23 -> 1.312851694 | AV23: =IF($A$9=TRUE,(MIN(1,1.029*AU23-0.065*AT23-0.245*(AU23)^2+0.0018*(AT23)^2+0.0215*(AU23)^3)),(MIN(1,1.04*AU23-0.065*AT23-0.159*(AU23)^2+0.00187*(AT23)^2+0.0095*(AU23)^3))) -> 0.4599432095 | AW23: =IF(AV23<0,0,$H23*AV23) -> 13608.17784 | AX23: =IF($A$9=TRUE,area10*J23*(cap_alm/75)^-0.25,area10*J23*((cau_circ/10.1)^0.28)*((cap_alm_aire/0.25)^-0.3)) -> 13.3202915 | AY23: =area10*M23 -> 1.476496751 | AZ23: =IF($A$9=TRUE,(MIN(1,1.029*AY23-0.065*AX23-0.245*(AY23)^2+0.0018*(AX23)^2+0.0215*(AY23)^3)),(MIN(1,1.04*AY23-0.065*AX23-0.159*(AY23)^2+0.00187*(AX23)^2+0.0095*(AY23)^3))) -> 0.5079648135 | BA23: =IF(AZ23<0,0,$H23*AZ23) -> 15028.97613
C24: F | D24: 29 | E24: 2505600 | F24: =Demanda_Climatización!E27 -> 3.8 | G24: =100-(F24) -> 96.2 | H24: =Demandas_Totales!J6 -> 26055.3384 | I24: 0.04351684563 | J24: 0.0357561907 | K24: =Radiación!U12 -> 11123504.88 | L24: =Angulo_Incidencia!S10 -> 0.9267789159 | M24: 0.008635875457 | N24: 0.0357561907 | O24: =area1*M24 -> 0.008635875457 | P24: =IF($A$9=TRUE,(MIN(1,1.029*O24-0.065*N24-0.245*(O24)^2+0.0018*(N24)^2+0.0215*(O24)^3)),(MIN(1,1.04*O24-0.065*N24-0.159*(O24)^2+0.00187*(N24)^2+0.0095*(O24)^3))) -> 0.006546206911 | Q24: =IF(P24<0,0,H24*P24) -> 170.5636363 | R24: 1.620947312 | S24: =area2*M24 -> 0.3914930207 | T24: =IF($A$9=TRUE,(MIN(1,1.029*S24-0.065*R24-0.245*(S24)^2+0.0018*(R24)^2+0.0215*(S24)^3)),(MIN(1,1.04*S24-0.065*R24-0.159*(S24)^2+0.00187*(R24)^2+0.0095*(S24)^3))) -> 0.2659538888 | U24: =IF(T24<0,0,$H24*T24) -> 6929.518572 | V24: 3.206138433 | W24: =area3*M24 -> 0.774350166 | X24: =IF($A$9=TRUE,(MIN(1,1.029*W24-0.065*V24-0.245*(W24)^2+0.0018*(V24)^2+0.0215*(W24)^3)),(MIN(1,1.04*W24-0.065*V24-0.159*(W24)^2+0.00187*(V24)^2+0.0095*(W24)^3))) -> 0.4699864116 | Y24: =IF(X24<0,0,$H24*X24) -> 12245.655 | Z24: 4.791329554 | AA24: =area4*M24 -> 1.157207311 | AB24: =IF($A$9=TRUE,(MIN(1,1.029*AA24-0.065*Z24-0.245*(AA24)^2+0.0018*(Z24)^2+0.0215*(AA24)^3)),(MIN(1,1.04*AA24-0.065*Z24-0.159*(AA24)^2+0.00187*(Z24)^2+0.0095*(AA24)^3))) -> 0.625883132 | AC24: =IF(AB24<0,0,$H24*AB24) -> 16307.5968 | AD24: 6.376520675 | AE24: =area5*M24 -> 1.540064456 | AF24: =IF($A$9=TRUE,(MIN(1,1.029*AE24-0.065*AD24-0.245*(AE24)^2+0.0018*(AD24)^2+0.0215*(AE24)^3)),(MIN(1,1.04*AE24-0.065*AD24-0.159*(AE24)^2+0.00187*(AD24)^2+0.0095*(AE24)^3))) -> 0.7408834068 | AG24: =IF(AF24<0,0,$H24*AF24) -> 19303.96788 | AH24: 7.961711797 | AI24: =area6*M24 -> 1.922921602 | AJ24: =IF($A$9=TRUE,(MIN(1,1.029*AI24-0.065*AH24-0.245*(AI24)^2+0.0018*(AH24)^2+0.0215*(AI24)^3)),(MIN(1,1.04*AI24-0.065*AH24-0.159*(AI24)^2+0.00187*(AH24)^2+0.0095*(AI24)^3))) -> 0.8222265928 | AK24: =IF(AJ24<0,0,$H24*AJ24) -> 21423.39212 | AL24: 9.546902918 | AM24: =area7*M24 -> 2.305778747 | AN24: =IF($A$9=TRUE,(MIN(1,1.029*AM24-0.065*AL24-0.245*(AM24)^2+0.0018*(AL24)^2+0.0215*(AM24)^3)),(MIN(1,1.04*AM24-0.065*AL24-0.159*(AM24)^2+0.00187*(AL24)^2+0.0095*(AM24)^3))) -> 0.8771520467 | AO24: =IF(AN24<0,0,$H24*AN24) -> 22854.49341 | AP24: 11.13209404 | AQ24: =area8*M24 -> 2.688635892 | AR24: =IF($A$9=TRUE,(MIN(1,1.029*AQ24-0.065*AP24-0.245*(AQ24)^2+0.0018*(AP24)^2+0.0215*(AQ24)^3)),(MIN(1,1.04*AQ24-0.065*AP24-0.159*(AQ24)^2+0.00187*(AP24)^2+0.0095*(AQ24)^3))) -> 0.9128991254 | AS24: =IF(AR24<0,0,$H24*AR24) -> 23785.89564 | AT24: 12.71728516 | AU24: =area9*M24 -> 3.071493037 | AV24: =IF($A$9=TRUE,(MIN(1,1.029*AU24-0.065*AT24-0.245*(AU24)^2+0.0018*(AT24)^2+0.0215*(AU24)^3)),(MIN(1,1.04*AU24-0.065*AT24-0.159*(AU24)^2+0.00187*(AT24)^2+0.0095*(AU24)^3))) -> 0.9367071856 | AW24: =IF(AV24<0,0,$H24*AV24) -> 24406.2227 | AX24: 14.30247628 | AY24: 3.454350183 | AZ24: =IF($A$9=TRUE,(MIN(1,1.029*AY24-0.065*AX24-0.245*(AY24)^2+0.0018*(AX24)^2+0.0215*(AY24)^3)),(MIN(1,1.04*AY24-0.065*AX24-0.159*(AY24)^2+0.00187*(AX24)^2+0.0095*(AY24)^3))) -> 0.955815584 | BA24: =IF(AZ24<0,0,$H24*AZ24) -> 24904.09849
C25: M | D25: 31 | E25: 2678400 | F25: =Demanda_Climatización!E28 -> 7.1 | G25: 92.9 | H25: =Demandas_Totales!J7 -> 28107.3156 | I25: 0.04164272043 | J25: 0.03373015529 | K25: =Radiación!U13 -> 12908338 | L25: =Angulo_Incidencia!S11 -> 0.9192090856 | M25: 0.009849501632 | N25: 0.03373015529 | O25: 0.009849501632 | P25: 0.007920977424 | Q25: 222.6374123 | R25: 1.529100373 | S25: 0.4465107406 | T25: 0.3173445589 | U25: 8919.70367 | V25: 3.024470591 | W25: 0.8831719796 | X25: 0.5523711725 | Y25: 15525.67087 | Z25: 4.519840809 | AA25: 1.319833219 | AB25: 0.7237412971 | AC25: 20342.42505 | AD25: 6.015211027 | AE25: 1.756494458 | AF25: 0.8421954113 | AG25: 23671.85222 | AH25: 7.510581245 | AI25: 2.193155697 | AJ25: 0.9184739939 | AK25: 25815.83842 | AL25: 9.005951463 | AM25: 2.629816936 | AN25: 0.9633175235 | AO25: 27076.26966 | AP25: 10.50132168 | AQ25: 3.066478175 | AR25: 0.9874664789 | AS25: 27755.03197 | AT25: 11.9966919 | AU25: 3.503139414 | AV25: 1 | AW25: 28107.3156 | AX25: 13.49206212 | AY25: 3.939800653 | AZ25: 1 | BA25: 28107.3156
C26: A | D26: 30 | E26: 2592000 | F26: =Demanda_Climatización!E29 -> 9.2 | G26: 90.8 | H26: =Demandas_Totales!J8 -> 25769.016 | I26: 0.04296257701 | J26: 0.03695160148 | K26: =Radiación!U14 -> 15254088.5 | L26: =Angulo_Incidencia!S12 -> 0.9138989456 | M26: 0.01221504731 | N26: 0.03695160148 | O26: 0.01221504731 | P26: 0.01013337072 | Q26: 261.1269921 | R26: 1.675139267 | S26: 0.5537488112 | T26: 0.3944988976 | U26: 10165.8484 | V26: 3.313326933 | W26: 1.095282575 | X26: 0.6657773078 | Y26: 17156.4261 | Z26: 4.951514598 | AA26: 1.636816339 | AB26: 0.8444550334 | AC26: 21760.77527 | AD26: 6.589702264 | AE26: 2.178350103 | AF26: 0.9510185066 | AG26: 24506.81111 | AH26: 8.227889929 | AI26: 2.719883867 | AJ26: 1 | AK26: 25769.016 | AL26: 9.866077595 | AM26: 3.261417631 | AN26: 1 | AO26: 25769.016 | AP26: 11.50426526 | AQ26: 3.802951395 | AR26: 1 | AS26: 25769.016 | AT26: 13.14245293 | AU26: 4.344485158 | AV26: 1 | AW26: 25769.016 | AX26: 14.78064059 | AY26: 4.886018922 | AZ26: 1 | BA26: 25769.016
C27: M | D27: 31 | E27: 2678400 | F27: =Demanda_Climatización!E30 -> 12.2 | G27: 87.8 | H27: =Demandas_Totales!J9 -> 25148.6508 | I27: 0.04398682088 | J27: 0.03950597662 | K27: =Radiación!U15 -> 17694914.52 | L27: =Angulo_Incidencia!S13 -> 0.9074980701 | M27: 0.01489801743 | N27: 0.03950597662 | O27: 0.01489801743 | P27: 0.01271067388 | Q27: 319.6562987 | R27: 1.790937607 | S27: 0.6753767903 | T27: 0.4791957502 | U27: 12051.12659 | V27: 3.542369237 | W27: 1.335855563 | X27: 0.7809762129 | Y27: 19640.49806 | Z27: 5.293800867 | AA27: 1.996334336 | AB27: 0.9552198148 | AC27: 24022.48956 | AD27: 7.045232497 | AE27: 2.656813109 | AF27: 1 | AG27: 25148.6508 | AH27: 8.796664127 | AI27: 3.317291882 | AJ27: 1 | AK27: 25148.6508 | AL27: 10.54809576 | AM27: 3.977770655 | AN27: 1 | AO27: 25148.6508 | AP27: 12.29952739 | AQ27: 4.638249428 | AR27: 1 | AS27: 25148.6508 | AT27: 14.05095902 | AU27: 5.298728201 | AV27: 1 | AW27: 25148.6508 | AX27: 15.80239065 | AY27: 5.959206973 | AZ27: 1 | BA27: 25148.6508
C28: J | D28: 30 | E28: 2592000 | F28: =Demanda_Climatización!E31 -> 16.2 | G28: 83.8 | H28: =Demandas_Totales!J10 -> 22905.792 | I28: 0.04460679458 | J28: 0.04114471114 | K28: =Radiación!U16 -> 20112466.78 | L28: =Angulo_Incidencia!S14 -> 0.9047541533 | M28: 0.01793738637 | N28: 0.04114471114 | O28: 0.01793738637 | P28: 0.01570750693 | Q28: 359.7928865 | R28: 1.865226905 | S28: 0.8131615156 | T28: 0.5713243197 | U28: 13086.63603 | V28: 3.689309099 | W28: 1.608385645 | X28: 0.8953878736 | Y28: 20509.56839 | Z28: 5.513391293 | AA28: 2.403609774 | AB28: 1 | AC28: 22905.792 | AD28: 7.337473487 | AE28: 3.198833903 | AF28: 1 | AG28: 22905.792 | AH28: 9.161555681 | AI28: 3.994058033 | AJ28: 1 | AK28: 22905.792 | AL28: 10.98563788 | AM28: 4.789282162 | AN28: 1 | AO28: 22905.792 | AP28: 12.80972007 | AQ28: 5.584506291 | AR28: =IF($A$9=TRUE,(MIN(1,1.029*AQ28-0.065*AP28-0.245*(AQ28)^2+0.0018*(AP28)^2+0.0215*(AQ28)^3)),(MIN(1,1.04*AQ28-0.065*AP28-0.159*(AQ28)^2+0.00187*(AP28)^2+0.0095*(AQ28)^3))) -> 1 | AS28: 22905.792 | AT28: 14.63380226 | AU28: 6.37973042 | AV28: 1 | AW28: 22905.792 | AX28: 16.45788446 | AY28: 7.174954549 | AZ28: 1 | BA28: 22905.792
C29: J | D29: 31 | E29: 2678400 | F29: =Demanda_Climatización!E32 -> 19.2 | G29: 80.8 | H29: =Demandas_Totales!J11 -> 21450.3198 | I29: 0.04745919186 | J29: 0.04811469258 | K29: =Radiación!U17 -> 21930241.35 | L29: =Angulo_Incidencia!S15 -> 0.9095277545 | M29: 0.02169574589 | N29: 0.04811469258 | O29: 0.02169574589 | P29: 0.01908653129 | Q29: 409.4122001 | R29: 2.181199397 | S29: 0.9835404805 | T29: 0.6623034585 | U29: 14206.62099 | V29: 4.314284101 | W29: 1.945385215 | X29: 0.9859587753 | Y29: 21149.13104 | Z29: 6.447368806 | AA29: 2.90722995 | AB29: 1 | AC29: 21450.3198 | AD29: 8.58045351 | AE29: 3.869074684 | AF29: 1 | AG29: 21450.3198 | AH29: 10.71353821 | AI29: 4.830919419 | AJ29: 1 | AK29: 21450.3198 | AL29: 12.84662292 | AM29: 5.792764154 | AN29: 1 | AO29: 21450.3198 | AP29: 14.97970762 | AQ29: 6.754608888 | AR29: 1 | AS29: 21450.3198 | AT29: 17.11279233 | AU29: 7.716453623 | AV29: 1 | AW29: 21450.3198 | AX29: 19.24587703 | AY29: 8.678298358 | AZ29: 1 | BA29: 21450.3198
C30: A | D30: 31 | E30: 2678400 | F30: =Demanda_Climatización!E33 -> 18.8 | G30: 81.2 | H30: =Demandas_Totales!J12 -> 21450.3198 | I30: 0.04769413836 | J30: 0.04865976845 | K30: =Radiación!U18 -> 20881482.79 | L30: =Angulo_Incidencia!S16 -> 0.9184420857 | M30: 0.02086067365 | N30: 0.04865976845 | O30: 0.02086067365 | P30: 0.01820058931 | Q30: =IF(P30<0,0,H30*P30) -> 390.4084613 | R30: 2.205909503 | S30: 0.945683872 | T30: 0.6375590013 | U30: 13675.84447 | V30: 4.363159237 | W30: 1.87050707 | X30: 0.958915384 | Y30: 20569.04165 | Z30: 6.520408972 | AA30: 2.795330269 | AB30: 1 | AC30: 21450.3198 | AD30: 8.677658707 | AE30: 3.720153467 | AF30: 1 | AG30: 21450.3198 | AH30: 10.83490844 | AI30: 4.644976665 | AJ30: 1 | AK30: 21450.3198 | AL30: 12.99215818 | AM30: 5.569799864 | AN30: 1 | AO30: 21450.3198 | AP30: 15.14940791 | AQ30: 6.494623062 | AR30: 1 | AS30: 21450.3198 | AT30: 17.30665764 | AU30: 7.419446261 | AV30: 1 | AW30: 21450.3198 | AX30: 19.46390738 | AY30: 8.344269459 | AZ30: 1 | BA30: 21450.3198
C31: S | D31: 30 | E31: 2592000 | F31: =Demanda_Climatización!E34 -> 16.2 | G31: 83.8 | H31: =Demandas_Totales!J13 -> 22189.986 | I31: 0.04604572344 | J31: 0.04459292042 | K31: =Radiación!U19 -> 16947954.9 | L31: =Angulo_Incidencia!S17 -> 0.9251014198 | M31: 0.01595358055 | N31: 0.04459292042 | O31: 0.01595358055 | P31: 0.01345900461 | Q31: 298.6551238 | R31: 2.021545726 | S31: 0.7232289847 | T31: 0.5001416615 | U31: 11098.13647 | V31: 3.998498531 | W31: 1.430504389 | X31: 0.8024480078 | Y31: 17806.31006 | Z31: 5.975451336 | AA31: 2.137779793 | AB31: 0.9660190672 | AC31: 21435.94958 | AD31: 7.952404141 | AE31: 2.845055197 | AF31: 1 | AG31: 22189.986 | AH31: 9.929356947 | AI31: 3.552330601 | AJ31: 1 | AK31: 22189.986 | AL31: 11.90630975 | AM31: 4.259606006 | AN31: 1 | AO31: 22189.986 | AP31: 13.88326256 | AQ31: 4.96688141 | AR31: 1 | AS31: 22189.986 | AT31: 15.86021536 | AU31: 5.674156814 | AV31: 1 | AW31: 22189.986 | AX31: 17.83716817 | AY31: 6.381432218 | AZ31: 1 | BA31: 22189.986
C32: O | D32: 31 | E32: 2678400 | F32: =Demanda_Climatización!E35 -> 11.3 | G32: 88.7 | H32: =Demandas_Totales!J14 -> 25148.6508 | I32: 0.04443771084 | J32: 0.04055204133 | K32: =Radiación!U20 -> 13738519.09 | L32: =Angulo_Incidencia!S18 -> 0.9298283384 | M32: 0.01185160036 | N32: 0.04055204133 | O32: 0.01185160036 | P32: 0.009527997115 | Q32: 239.6162723 | R32: 1.838359207 | S32: 0.5372725498 | T32: 0.3720556185 | U32: 9356.696829 | V32: 3.636166373 | W32: 1.062693499 | X32: 0.6300796304 | Y32: 15845.6526 | Z32: 5.433973539 | AA32: 1.588114449 | AB32: 0.8023116732 | AC32: 20177.0561 | AD32: 7.231780705 | AE32: 2.113535398 | AF32: 0.9074633874 | AG32: 22821.47984 | AH32: 9.029587871 | AI32: 2.638956348 | AJ32: 0.9642464136 | AK32: 24249.49634 | AL32: 10.82739504 | AM32: 3.164377297 | AN32: 0.9913723922 | AO32: 24931.6781 | AP32: 12.6252022 | AQ32: 3.689798247 | AR32: 1 | AS32: 25148.6508 | AT32: 14.42300937 | AU32: 4.215219196 | AV32: 1 | AW32: 25148.6508 | AX32: 16.22081653 | AY32: 4.740640146 | AZ32: 1 | BA32: 25148.6508
C33: N | D33: 30 | E33: 2592000 | F33: =Demanda_Climatización!E36 -> 6.5 | G33: 93.5 | H33: =Demandas_Totales!J15 -> 27200.628 | I33: 0.04191167233 | J33: 0.03435412372 | K33: =Radiación!U21 -> 7478642.904 | L33: =Angulo_Incidencia!S19 -> 0.9180164975 | M33: 0.005699055706 | N33: 0.03435412372 | O33: 0.005699055706 | P33: 0.003625481217 | Q33: 98.6153659 | R33: 1.557386942 | S33: 0.258357192 | T33: 0.1530026154 | U33: 4161.767225 | V33: 3.08041976 | W33: 0.5110153283 | X33: 0.2815782439 | Y33: 7659.105066 | Z33: 4.603452578 | AA33: 0.7636734646 | AB33: 0.3914329715 | AC33: 10647.22264 | AD33: 6.126485396 | AE33: 1.016331601 | AF33: 0.4846474028 | AG33: 13182.71371 | AH33: 7.649518215 | AI33: 1.268989737 | AJ33: 0.5633021425 | AK33: 15322.17203 | AL33: 9.172551033 | AM33: 1.521647873 | AN33: 0.6294777953 | AO33: 17122.19135 | AP33: 10.69558385 | AQ33: 1.77430601 | AR33: 0.685254966 | AS33: 18639.36542 | AT33: 12.21861667 | AU33: 2.026964146 | AV33: 0.7327142592 | AW33: 19930.288 | AX33: 13.74164949 | AY33: 2.279622282 | AZ33: 0.7739362796 | BA33: 21051.55284
C34: D | D34: 31 | E34: 2678400 | F34: =Demanda_Climatización!E37 -> 3.4 | G34: 96.6 | H34: =Demandas_Totales!J16 -> 28846.9818 | I34: 0.04219096855 | J34: 0.03492853143 | K34: =Radiación!U22 -> 4014610.551 | L34: =Angulo_Incidencia!S20 -> 0.9047759982 | M34: 0.002937873567 | N34: 0.03492853143 | O34: 0.002937873567 | P34: 0.0007527992871 | Q34: =IF(P34<0,0,H34*P34) -> 21.71598733 | R34: 1.583426758 | S34: 0.1331836017 | T34: 0.03434123229 | U34: 990.640903 | V34: 3.131924985 | W34: 0.2634293299 | X34: 0.06854103055 | Y34: 1977.201861 | Z34: 4.680423212 | AA34: 0.393675058 | AB34: 0.1036372172 | AC34: 2989.620919 | AD34: 6.228921439 | AE34: 0.5239207862 | AF34: 0.1399148155 | AG34: 4036.120136 | AH34: 7.777419666 | AI34: 0.6541665143 | AJ34: 0.1776588486 | AK34: 5124.921571 | AL34: 9.325917893 | AM34: 0.7844122425 | AN34: 0.2171543396 | AO34: 6264.247281 | AP34: 10.87441612 | AQ34: 0.9146579706 | AR34: 0.2586863117 | AS34: 7462.319325 | AT34: 12.42291435 | AU34: 1.044903699 | AV34: 0.3025397881 | AW34: 8727.359761 | AX34: 13.97141257 | AY34: 1.175149427 | AZ34: 0.348999792 | BA34: 10067.59065
P35: Total= | Q35: =SUM(Q23:Q34) -> 2840.497866 | T35: Total= | U35: =SUM(U23:U34) -> 106755.1889 | X35: Total= | Y35: =SUM(Y23:Y34) -> 174122.2756 | AB35: Total= | AC35: =SUM(AC23:AC34) -> 209330.6891 | AF35: Total= | AG35: =SUM(AG23:AG34) -> 228206.7084 | AJ35: Total= | AK35: =SUM(AK23:AK34) -> 239997.3662 | AN35: Total= | AO35: =SUM(AO23:AO34) -> 247847.1107 | AR35: Total= | AS35: =SUM(AS23:AS34) -> 253870.8242 | AV35: Total= | AW35: =SUM(AW23:AW34) -> 258842.0991 | AZ35: Total= | BA35: =SUM(BA23:BA34) -> 263222.2689
G36: Total | H36: =SUM(H23:H34) -> 303859.647 | I36: MJ/año | P36: fanual = | Q36: =Q35/cartotal -> 0.009348058863 | T36: fanual = | U36: =U35/cartotal -> 0.3513305895 | X36: fanual = | Y36: =Y35/cartotal -> 0.5730352065 | AB36: fanual = | AC36: =AC35/cartotal -> 0.6889058525 | AF36: fanual = | AG36: =AG35/cartotal -> 0.7510267015 | AJ36: fanual = | AK36: =AK35/cartotal -> 0.789829675 | AN36: fanual = | AO36: =AO35/cartotal -> 0.8156631299 | AR36: fanual = | AS36: =AS35/cartotal -> 0.8354871294 | AV36: fanual = | AW36: =AW35/cartotal -> 0.8518475607 | AZ36: fanual = | BA36: =BA35/cartotal -> 0.8662626693
D38: Área | E38: Fracción
D39: (m2) | E39: anual
D40: 0 | E40: 0
D41: =area1 -> 1 | E41: =factor1 -> 0.009348058863
D42: =area2 -> 45.33333333 | E42: =factor2 -> 0.3513305895
D43: =area3 -> 89.66666667 | E43: =factor3 -> 0.5730352065
D44: =area4 -> 134 | E44: =factor4 -> 0.6889058525
D45: =area5 -> 178.3333333 | E45: =factor5 -> 0.7510267015
D46: =area6 -> 222.6666667 | E46: =factor6 -> 0.789829675
D47: =area7 -> 267 | E47: =factor7 -> 0.8156631299
D48: =area8 -> 311.3333333 | E48: =factor8 -> 0.8354871294
D49: =area9 -> 355.6666667 | E49: =factor9 -> 0.8518475607

Sheet Pérdidas_Conductos
B1: Implementa el cálculo de las pérdidas térmicas por conductos y tuberías (referencia en cualquier obra de fluidos, aunque similar a la de J. A. Duffie & W. A. Beckman, sección 10.3, "Duct and pipe loss factors")
C3: U conductos (Ud) | D3: 1 | E3: W/m2K
C4: Area conductos ida (Ao) | D4: 0.4 | E4: m2
C5: Area conductos retorno (Ai) | D5: 0.4 | E5: m2
C6: Area de captación (Ac) | D6: 2 | E6: m2
C7: Caudal másico unitario | D7: 0.02 | E7: kg/s·m2
C9: Caudal másico en primario (mc) | D9: =D7*D6 -> 0.04 | E9: kg/s
C11: Capacidad calorífica fluido primario (cp)c | D11: 4180 | E11: J/kgK
C13: Valores originales de:
C14: FR(ta) = | D14: =frta -> 0.784
C15: FRUL = | D15: =frul -> 4.9
C18: Nuevos valores de:
C19: FR(ta) = | D19: =D14*1/(1+(D3*D4/(D9*D11))) -> 0.7821288783
C20: FRUL = | D20: =D15*(1-((D3*D5)/(D9*D11))+(D3*(D4+D5)/(D15*D6)))/(1+(D3*D4)/(D9*D11)) -> 5.275656325

Sheet Viabilidad_Económica
C2: Espacio temporal | E2: 20 | F2: años | H2: Combustible
C3: Inflación(ipc) | E3: 2 | F3: % | H3: Tipo de instalación
C5: Coste solar variable | E5: 350 | F5: € / m2
C6: Coste solar fijo | E6: 1500 | F6: € | H6: PCI combustible fósil | I6: 17581.2 | J6: kJ/kg
H7: Rendimiento caldera | I7: 0.7 | J7: ô
C8: Mantenimiento | E8: 0.5 | F8: %sobre la inversión | H8: Precio del combustible | I8: 0.4 | J8: €/litro
C11: Área | D11: fanual | E11: LTOT | F11: Inversión | G11: Ahorro anual comb. | H11: Gastos | I11: Flujo de caja | J11: VAN | K11: TRI
C12: (m2) | E12: (MJ / año) | F12: (€) | G12: (€) | H12: (€) | I12: (€) | J12: (€) | K12: (años) | L12: Año 1 | M12: Año 2 | N12: Año 3 | O12: Año 4 | P12: Año 5 | Q12: Año 6 | R12: Año 7 | S12: Año 8 | T12: Año 9 | U12: Año 10 | V12: Año 11 | W12: Año 12 | X12: Año 13 | Y12: Año 14 | Z12: Año 15 | AA12: Año 16 | AB12: Año 17 | AC12: Año 18 | AD12: Año 19 | AE12: Año 20
C13: 0 | D13: 0 | E13: =cartotal -> 303859.647 | F13: 0 | G13: 0 | H13: 0 | I13: =-(E13*preucomb/(pci*rendcal)) -> -9.876122449 | J13: =I13*(((1+(ipc/100))^anys-1)/((ipc/100)*(1+(ipc/100))^anys)) -> -161.4887579 | L13: 1 | M13: 2 | N13: 3 | O13: 4 | P13: 5 | Q13: 6 | R13: 7 | S13: 8 | T13: 9 | U13: 10 | V13: 11 | W13: 12 | X13: 13 | Y13: 14 | Z13: 15 | AA13: 16 | AB13: 17 | AC13: 18 | AD13: 19 | AE13: 20
B14: f1 | C14: =area1 -> 1 | D14: =factor1 -> 0.009348058863 | E14: =cartotal -> 303859.647 | F14: =C14*csv+csf -> 1850 | G14: =(D14*E14*preucomb/((pci/1000)*rendcal)) -> 92.32257399 | H14: =F14*$E$8/100 -> 9.25 | I14: =G14-H14 -> 83.07257399 | J14: =-F14+I14*(((1+(ipc/100))^anys-1)/((ipc/100)*(1+(ipc/100))^anys)) -> -491.6443437 | K14: =(LN(I14/(I14-F14*(ipc/100))))/(LN(1+(ipc/100))) -> 29.76861371 | L14: =-F14+($I$14/(1+(ipc/100))) -> -1768.5563 | M14: =L14+($I$14/(1+(ipc/100))^M13) -> -1688.709535 | N14: -1610.428393 | O14: -1533.682176 | P14: -1458.440786 | Q14: -1384.674718 | R14: -1312.355043 | S14: -1241.453401 | T14: -1171.941987 | U14: -1103.793542 | V14: -1036.981342 | W14: -971.479184 | X14: -907.2613823 | Y14: -844.3027533 | Z14: -782.5786072 | AA14: -722.0647384 | AB14: -662.7374161 | AC14: -604.5733746 | AD14: -547.5498045 | AE14: -491.6443437
B15: f2 | C15: =area2 -> 45.33333333 | D15: =factor2 -> 0.3513305895 | E15: =cartotal -> 303859.647 | F15: 17366.66667 | G15: 3469.783922 | H15: =F15*$E$8/100 -> 86.83333333 | I15: =G15-H15 -> 3382.950589 | J15: =-F15+I15*(((1+(ipc/100))^anys-1)/((ipc/100)*(1+(ipc/100))^anys)) -> 37949.42439 | K15: 5.470663031 | L15: =-F15+($I$15/(1+(ipc/100))) -> -14050.04844 | M15: =L15+($I$15/(1+(ipc/100))^M13) -> -10798.46195 | N15: =M15+($I$15/(1+(ipc/100))^N13) -> -7610.632051 | O15: -4485.308623 | P15: -1421.266047 | Q15: 1582.697263 | R15: 4527.759332 | S15: 7415.075086 | T15: 10245.77681 | U15: 13020.97457 | V15: 15741.75669 | W15: 18409.19014 | X15: 21024.32098 | Y15: 23588.17474 | Z15: 26101.75686 | AA15: 28566.05305 | AB15: 30982.02971 | AC15: 33350.63428 | AD15: 35672.79563 | AE15: 37949.42439
B16: f3 | C16: =area3 -> 89.66666667 | D16: =factor3 -> 0.5730352065 | E16: 303859.647 | F16: 32883.33333 | G16: 5659.365867 | H16: 164.4166667 | I16: 5494.9492 | J16: 56966.96225 | K16: 6.43733976 | L16: =-F16+($I$16/(1+(ipc/100))) -> -27496.12823 | M16: =L16+($I$16/(1+(ipc/100))^M13) -> -22214.55461 | N16: -17036.54125 | O16: -11960.05757 | P16: -6983.112776 | Q16: -2103.75514 | R16: 2679.928818 | S16: 7369.81505 | T16: 11967.74273 | U16: 16475.51496 | V16: 20894.89951 | W16: 25227.62945 | X16: 29475.40391 | Y16: 33639.88867 | Z16: 37722.71686 | AA16: 41725.48961 | AB16: 45649.77661 | AC16: 49497.1168 | AD16: 53269.01896 | AE16: 56966.96225
B17: f4 | C17: =area4 -> 134 | D17: =factor4 -> 0.6889058525 | E17: 303859.647 | F17: 48400 | G17: 6803.718555 | H17: 242 | I17: 6561.718555 | J17: 58893.50357 | K17: 8.059953841 | L17: =-F17+($I$17/(1+(ipc/100))) -> -41966.94259 | M17: =L17+($I$17/(1+(ipc/100))^M13) -> -35660.02357 | N17: -29476.76962 | O17: -23414.75595 | P17: -17471.60529 | Q17: -11644.98699 | R17: -5932.616115 | S17: -332.2525102 | T17: 5158.300044 | U17: 10541.1947 | V17: 15818.54241 | W17: 20992.41271 | X17: 26064.83457 | Y17: 31037.79719 | Z17: 35913.25073 | AA17: 40693.10714 | AB17: 45379.24087 | AC17: 49973.48964 | AD17: 54477.65509 | AE17: 58893.50357
B18: f5 | C18: =area5 -> 178.3333333 | D18: =factor5 -> 0.7510267015 | E18: 303859.647 | F18: 63916.66667 | G18: 7417.231666 | H18: 319.5833333 | I18: 7097.648333 | J18: 52140.05696 | K18: 10.02801034 | L18: =-F18+($I$18/(1+(ipc/100))) -> -56958.18791 | M18: =L18+($I$18/(1+(ipc/100))^M13) -> -50136.14991 | N18: -43447.87736 | O18: -36890.74742 | P18: -30462.18864 | Q18: -24159.68004 | R18: -17980.75004 | S18: -11922.97553 | T18: -5983.980913 | U18: -161.4371703 | V18: 5546.939048 | W18: 11143.38632 | X18: 16630.09933 | Y18: 22009.22974 | Z18: 27282.887 | AA18: 32453.13921 | AB18: 37522.01394 | AC18: 42491.49896 | AD18: 47363.54309 | AE18: 52140.05696
B19: f6 | C19: =area6 -> 222.6666667 | D19: =factor6 -> 0.789829675 | E19: 303859.647 | F19: 79433.33333 | G19: 7800.454585 | H19: 397.1666667 | I19: 7403.287918 | J19: 41621.03559 | K19: 12.19780388 | L19: =-F19+($I$19/(1+(ipc/100))) -> -72175.20792 | M19: =L19+($I$19/(1+(ipc/100))^M13) -> -65059.3987 | N19: -58083.11514 | O19: -51243.62146 | P19: -44538.2355 | Q19: -37964.3277 | R19: -31519.32005 | S19: -25200.68509 | T19: -19005.94494 | U19: -12932.67028 | V19: -6978.479445 | W19: -1141.037445 | X19: 4581.944908 | Y19: 10192.71192 | Z19: 15693.46389 | AA19: 21086.35799 | AB19: 26373.50906 | AC19: 31556.9905 | AD19: 36638.83505 | AE19: 41621.03559
B20: f7 | C20: =area7 -> 267 | D20: =factor7 -> 0.8156631299 | E20: 303859.647 | F20: 94950 | G20: 8055.588948 | H20: 474.75 | I20: 7580.838948 | J20: 29007.58276 | K20: 14.56114533 | L20: =-F20+($I$20/(1+(ipc/100))) -> -87517.80495 | M20: =L20+($I$20/(1+(ipc/100))^M13) -> -80231.33922 | N20: -73087.74536 | O20: -66084.22198 | P20: -59218.02258 | Q20: -52486.45454 | R20: -45886.87803 | S20: -39416.70498 | T20: -33073.39807 | U20: -26854.46973 | V20: -20757.48116 | W20: -14780.04138 | X20: -8919.806306 | Y20: -3174.477802 | Z20: 2458.197202 | AA20: 7980.427599 | AB20: 13394.37897 | AC20: 18702.17443 | AD20: 23905.89547 | AE20: 29007.58276
B21: f8 | C21: =area8 -> 311.3333333 | D21: =factor8 -> 0.8354871294 | E21: 303859.647 | F21: 110466.6667 | G21: 8251.373194 | H21: 552.3333333 | I21: 7699.039861 | J21: 15423.67044 | K21: 17.07959375 | L21: =-F21+($I$21/(1+(ipc/100))) -> -102918.5884 | M21: =L21+($I$21/(1+(ipc/100))^M13) -> -95518.51161 | N21: -88263.5344 | O21: -81150.81164 | P21: -74177.55403 | Q21: -67341.02696 | R21: -60638.54944 | S21: -54067.49305 | T21: -47625.28091 | U21: -41309.38665 | V21: -35117.33345 | W21: -29046.69306 | X21: -23095.08484 | Y21: -17260.17481 | Z21: -11539.67479 | AA21: -5931.341433 | AB21: -432.9753969 | AC21: 4957.57954 | AD21: 10242.43732 | AE21: 15423.67044
B22: f9 | C22: =area9 -> 355.6666667 | D22: =factor9 -> 0.8518475607 | E22: 303859.647 | F22: 125983.3333 | G22: 8412.950818 | H22: 629.9166667 | I22: 7783.034151 | J22: 1280.430803 | K22: 19.75370348 | L22: =-F22+($I$22/(1+(ipc/100))) -> -118352.9077 | M22: =L22+($I$22/(1+(ipc/100))^M13) -> -110872.0982 | N22: -103537.9713 | O22: -96347.65083 | P22: -89298.31701 | Q22: -82387.20542 | R22: -75611.60582 | S22: -68968.86111 | T22: -62456.3663 | U22: -56071.56747 | V22: -49811.96077 | W22: -43675.09145 | X22: -37658.55291 | Y22: -31759.98571 | Z22: -25977.07669 | AA22: -20307.55805 | AB22: -14749.20644 | AC22: -9299.84211 | AD22: -3957.328065 | AE22: 1280.430803
C24: VAN opt. | D24: =MAX(J14:J22) -> 58893.50357 | E24: → | F24: Área opt. | G24: =INDEX(C14:J22,MATCH(D24,J14:J22,0),1) -> 134 | H24: Fracción solar opt. | I24: =INDEX(C14:J22,MATCH(D24,J14:J22,0),2) -> 0.6889058525 | J24: TRI | K24: =INDEX(C14:K22,MATCH(D24,J14:J22,0),9) -> 8.059953841
C26: TRI opt. | D26: =MIN(K14:K22) -> 5.470663031 | E26: → | F26: Área opt. | G26: =INDEX(C14:K22,MATCH(D26,K14:K22,0),1) -> 45.33333333

Sheet Conclusiones
B2: Factor de CO2 | C2: 0.63 | D2: kgCO2/kWhe
C3: 0.21 | D3: kgCO2/kWht
B5: Área óptima de captación | C5: =Viabilidad_Económica!G24 -> 134 | D5: m2
B6: Área unitaria por captador | C6: 1.9 | D6: m2
B7: Nº de captadores | C7: =C5/C6 -> 70.52631579 | D7: captadores
B9: Fracción de aporte solar anual | C9: =Viabilidad_Económica!I24 -> 0.6889058525
B10: Ahorro energético | C10: =C9*cartotal -> 209330.6891 | D10: MJ/año | E10: =C10/4.186 -> 50007.33138 | F10: Mcal/año | G10: =C10*1000000*0.00000027778 -> 58147.87883 | H10: kWh/año
B11: Ahorro de combustible | C11: =C10*1000/(4.186*pci*rendcal) -> 4063.377063 | D11: Unidades de combustible | E11: =C11*preucomb*(((1+(ipc/100))^anys-1)/((ipc/100)*(1+(ipc/100))^anys)) -> 26576.81568 | F11: €
B12: Ahorro del ciclo de vida (20 años) | C12: =Viabilidad_Económica!D24 -> 58893.50357 | D12: €
B13: Tiempo de recuperación de la inversión | C13: =Viabilidad_Económica!K24 -> 8.059953841 | D13: años
B14: Ahorro en emisiones anuales de CO2 | C14: =G10*C3 -> 12211.05455 | D14: kgCO2/año | E14: =C14/1000 -> 12.21105455 | F14: tCO2/año
B16: Caudal estandard | C16: 0.015 | D16: l/s·m2
B17: Caudal en el primario | C17: =C16*C5 -> 2.01 | D17: l/s | E17: =C17*3600 -> 7236 | F17: l/h | G17: =C17/1000 -> 0.00201 | H17: m3/s | I17: =G17*3600 -> 7.236 | J17: m3/h
B18: Volumen de acumulación estandard | C18: 75 | D18: l/m2
B19: Volumen de acumulación principal | C19: =C18*C5 -> 10050 | D19: l

Sheet BBDD_Localidades
C5: Lista de Localidades
C6: Genérica
C7: Albacete
C8: Alicante
C9: Almería
C10: Ávila
C11: Badajoz
C12: Barcelona
C13: Bilbao
C14: Burgos
C15: Cáceres
C16: Cádiz
C17: Castellón
C18: Ciudad Real
C19: Córdoba
C20: A Coruña
C21: Cuenca
C22: Girona
C23: Granada
C24: Guadalajara
C25: Huelva
C26: Huesca
C27: Jaén
C28: León
C29: Lleida
C30: Logroño
C31: Lugo
C32: Madrid
C33: Málaga
C34: Murcia
C35: Ourense
C36: Oviedo
C37: Palencia
C38: Palma de Mallorca
C39: Las Palmas
C40: Pamplona
C41: Pontevedra
C42: Salamanca
C43: San Sebastián
C44: Santander
C45: Segovia
C46: Sevilla
C47: Soria
C48: Tarragona
C49: Tenerife
C50: Teruel
C51: Toledo
C52: Valencia
C53: Valladolid
C54: Vitoria
C55: Zaragoza
C76: Pontevedra
C78: Salamanca
C80: San Sebastián
C82: Santander
C84: Segovia
C86: Sevilla
C88: Soria
C90: Tarragona
C92: Tenerife
C94: Teruel
C96: Toledo
C98: Valencia
C100: Valladolid
C102: Vitoria
C104: Zaragoza

Sheet BBDD_Clima
C1: Otras fuentes:
C2: http://re.jrc.ec.europa.eu/pvgis/apps/radmonth.php?lang=es&map=europe
C3: http://opengis.uab.es/wms/iberia/espanol/es_cartografia.htm
B5: Localidad | C5: Latitud | D5: Dato | E5: Símbolo | F5: Unidades | G5: Enero | H5: Febrero | I5: Marzo | J5: Abril | K5: Mayo | L5: Junio | M5: Julio | N5: Agosto | O5: Septiembre | P5: Octubre | Q5: Noviembre | R5: Diciembre
B6: Albacete | C6: 38.92 | D6: Radiación en superficie plana | E6: H | F6: (kJ /m2-día) | G6: 6410 | H6: 9220 | I6: 13990 | J6: 16530 | K6: 19820 | L6: 23070 | M6: 23240 | N6: 19760 | O6: 16400 | P6: 11280 | Q6: 6310 | R6: 5630
C7: Altura (m) | D7: Indice de nubosidad | E7: KT | F7: (-) | G7: 0.49 | H7: 0.5 | I7: 0.54 | J7: 0.49 | K7: 0.51 | L7: 0.56 | M7: 0.58 | N7: 0.56 | O7: 0.58 | P7: 0.55 | Q7: 0.44 | R7: 0.48
C8: 686 | D8: Temperatura agua de red (UNE 94002) | E8: Tr | F8: ºC | G8: 7 | H8: 8 | I8: 9 | J8: 11 | K8: 14 | L8: 17 | M8: 19 | N8: 19 | O8: 17 | P8: 13 | Q8: 9 | R8: 7
D9: Temperatura ambiente | E9: Ta | F9: ºC | G9: 4.2 | H9: 5.6 | I9: 9 | J9: 11.6 | K9: 15.3 | L9: 20.5 | M9: 24.1 | N9: 23.8 | O9: 19.8 | P9: 13.7 | Q9: 8.7 | R9: 5.1
D10: Grados-día (15/15) calef. | E10: GD15 | F10: ºC | G10: 334.7 | H10: 267.5 | I10: 236.4 | J10: 157.1 | K10: 49.6 | L10: 2.1 | M10: 0 | N10: 0 | O10: 7.6 | P10: 95.8 | Q10: 209.6 | R10: 313.3
D11: Grados-día (18/18) calef. | E11: GD18 | F11: ºC
D12: Grados-día (21/21) refrig. | E12: GD21 | F12: ºC
B13: Alicante | C13: 38.37 | D13: Radiación en superficie plana | F13: (kJ /m2-día) | G13: 9360 | H13: 13540 | I13: 16244 | J13: 20746 | K13: 23720 | L13: 25870 | M13: 26088 | N13: 22446 | O13: 18522 | P13: 13386 | Q13: 9264 | R13: 7502
C14: Altura (m) | D14: Indice de nubosidad | F14: (-) | G14: 0.58 | H14: 0.63 | I14: 0.58 | J14: 0.59 | K14: 0.6 | L14: 0.62 | M14: 0.64 | N14: 0.61 | O14: 0.6 | P14: 0.59 | Q14: 0.53 | R14: 0.52
C15: 3 | D15: Temperatura agua de red (UNE 94002) | F15: ºC | G15: 11 | H15: 12 | I15: 13 | J15: 14 | K15: 16 | L15: 18 | M15: 20 | N15: 20 | O15: 19 | P15: 16 | Q15: 13 | R15: 12
D16: Temperatura ambiente | F16: ºC | G16: 11 | H16: 11.8 | I16: 14 | J16: 15.9 | K16: 19.1 | L16: 22.7 | M16: 25.5 | N16: 26 | O16: 23.7 | P16: 19.3 | Q16: 15.2 | R16: 12.1
D17: Grados-día (15/15) calef. | F17: ºC | G17: 128.6 | H17: 104.6 | I17: 87.9 | J17: 35.7 | K17: 3.4 | L17: 0 | M17: 0 | N17: 0 | O17: 0 | P17: 2.9 | Q17: 33.8 | R17: 120.5
D18: Grados-día (18/18) calef. | F18: ºC
D19: Grados-día (21/21) refrig. | F19: ºC
B20: Almería | C20: 36.83 | D20: Radiación en superficie plana | F20: (kJ /m2-día) | G20: 8918 | H20: 12144 | I20: 16748 | J20: 20432 | K20: 23404 | L20: 24034 | M20: 24534 | N20: 22188 | O20: 17962 | P20: 13778 | Q20: 9796 | R20: 7662
C21: Altura (m) | D21: Indice de nubosidad | F21: (-) | G21: 0.53 | H21: 0.54 | I21: 0.58 | J21: 0.58 | K21: 0.59 | L21: 0.58 | M21: 0.61 | N21: 0.6 | O21: 0.57 | P21: 0.56 | Q21: 0.53 | R21: 0.5
C22: 16 | D22: Temperatura agua de red (UNE 94002) | F22: ºC | G22: 12 | H22: 12 | I22: 13 | J22: 14 | K22: 16 | L22: 18 | M22: 20 | N22: 21 | O22: 19 | P22: 17 | Q22: 14 | R22: 12
D23: Temperatura ambiente | F23: ºC | G23: 11.7 | H23: 12.2 | I23: 14.1 | J23: 16.1 | K23: 18.4 | L23: 22 | M23: 24.7 | N23: 25.3 | O23: 23.4 | P23: 19.3 | Q23: 15.6 | R23: 12.8
D24: Grados-día (15/15) calef. | F24: ºC | G24: 90.8 | H24: 66.1 | I24: 44.7 | J24: 15.8 | K24: 1.3 | L24: 0 | M24: 0 | N24: 0 | O24: 0 | P24: 1.3 | Q24: 19 | R24: 80
D25: Grados-día (18/18) calef. | F25: ºC
D26: Grados-día (21/21) refrig. | F26: ºC
B27: Ávila | C27: 40.65 | D27: Radiación en superficie plana | F27: (kJ /m2-día) | G27: 6558 | H27: 10194 | I27: 12044 | J27: 16260 | K27: 19716 | L27: 21236 | M27: 24406 | N27: 22664 | O27: 16578 | P27: 11076 | Q27: 6454 | R27: 5004
C28: Altura (m) | D28: Indice de nubosidad | F28: (-) | G28: 0.45 | H28: 0.5 | I28: 0.44 | J28: 0.47 | K28: 0.5 | L28: 0.51 | M28: 0.51 | N28: 0.6 | O28: 0.62 | P28: 0.49 | Q28: 0.4 | R28: 0.38
C29: 1128 | D29: Temperatura agua de red (UNE 94002) | F29: ºC | G29: 6 | H29: 6 | I29: 7 | J29: 9 | K29: 11 | L29: 14 | M29: 17 | N29: 16 | O29: 14 | P29: 11 | Q29: 8 | R29: 6
D30: Temperatura ambiente | F30: ºC | G30: 2.4 | H30: 3.3 | I30: 6.3 | J30: 8.7 | K30: 12.2 | L30: 16.4 | M30: 20 | N30: 19.8 | O30: 16.3 | P30: 10.6 | Q30: 6.1 | R30: 3.3
D31: Grados-día (15/15) calef. | F31: ºC | G31: 357.4 | H31: 326.5 | I31: 316.7 | J31: 229.7 | K31: 136.6 | L31: 35.5 | M31: 1.2 | N31: 3.7 | O31: 37.3 | P31: 130.5 | Q31: 273.5 | R31: 388.4
D32: Grados-día (18/18) calef. | F32: ºC
D33: Grados-día (21/21) refrig. | F33: ºC
B34: Badajoz | C34: 38.88 | D34: Radiación en superficie plana | F34: (kJ /m2-día) | G34: 6656 | H34: 9504 | I34: 13150 | J34: 17588 | K34: 21266 | L34: 23320 | M34: 23906 | N34: 21142 | O34: 16496 | P34: 11638 | Q34: 7872 | R34: 5568
C35: Altura (m) | D35: Indice de nubosidad | F35: (-) | G35: 0.43 | H35: 0.45 | I35: 0.47 | J35: 0.5 | K35: 0.54 | L35: 0.56 | M35: 0.59 | N35: 0.57 | O35: 0.54 | P35: 0.49 | Q35: 0.46 | R35: 0.39
C36: 186 | D36: Temperatura agua de red (UNE 94002) | F36: ºC | G36: 9 | H36: 10 | I36: 11 | J36: 13 | K36: 15 | L36: 18 | M36: 20 | N36: 20 | O36: 18 | P36: 15 | Q36: 12 | R36: 9
D37: Temperatura ambiente | F37: ºC | G37: 8.7 | H37: 10 | I37: 12.7 | J37: 15.3 | K37: 18.1 | L37: 22.8 | M37: 25.9 | N37: 25.6 | O37: 22.8 | P37: 17.8 | Q37: 12.7 | R37: 9.1
D38: Grados-día (15/15) calef. | F38: ºC | G38: 213.9 | H38: 131.2 | I38: 99.2 | J38: 18 | K38: 0 | L38: 0 | M38: 0 | N38: 0 | O38: 0 | P38: 0 | Q38: 96 | R38: 189.1
D39: Grados-día (18/18) calef. | F39: ºC
D40: Grados-día (21/21) refrig. | F40: ºC
B41: Barcelona | C41: 41.4 | D41: Radiación en superficie plana | F41: (kJ /m2-día) | G41: 6800 | H41: 9650 | I41: 13880 | J41: 18540 | K41: 22250 | L41: 24030 | M41: 23370 | N41: 20420 | O41: 16050 | P41: 11400 | Q41: 7730 | R41: 6040 | S41: calef. 1515 573 152 114 77 50 2 0 0 0 0 5 56 117
C42: Altura (m) | D42: Indice de nubosidad | F42: (-) | G42: 0.44 | H42: 0.5 | I42: 0.51 | J42: 0.53 | K42: 0.54 | L42: 0.55 | M42: 0.55 | N42: 0.52 | O42: 0.51 | P42: 0.53 | Q42: 0.44 | R42: 0.46 | S42: calef. 1818 1128 246 195 154 117 40 0 0 0 0 46 125 205
C43: 18 | D43: Temperatura agua de red (UNE 94002) | F43: ºC | G43: 9 | H43: 10 | I43: 11 | J43: 12 | K43: 14 | L43: 17 | M43: 19 | N43: 19 | O43: 17 | P43: 15 | Q43: 12 | R43: 10 | S43: refr. 2121 354 0 0 0 0 5 44 118 135 52 0 0 0
D44: Temperatura ambiente | F44: ºC | G44: 9.5 | H44: 10.3 | I44: 12.3 | J44: 14.6 | K44: 17.7 | L44: 21.5 | M44: 24.3 | N44: 24.3 | O44: 21.9 | P44: 17.6 | Q44: 13.5 | R44: 10.3
D45: Grados-día (15/15) calef. | F45: ºC | G45: 152 | H45: 114 | I45: 77 | J45: 50 | K45: 2 | L45: 0 | M45: 0 | N45: 0 | O45: 0 | P45: 5 | Q45: 56 | R45: 117
D46: Grados-día (18/18) calef. | F46: ºC | G46: 246 | H46: 195 | I46: 143 | J46: 117 | K46: 40 | L46: 0 | M46: 0 | N46: 0 | O46: 0 | P46: 46 | Q46: 125 | R46: 205
D47: Grados-día (21/21) refrig. | F47: ºC | G47: 0 | H47: 0 | I47: 0 | J47: 0 | K47: 5 | L47: 44 | M47: 118 | N47: 135 | O47: 52 | P47: 0 | Q47: 0 | R47: 0
B48: Bilbao | C48: 43.4 | D48: Radiación en superficie plana | F48: (kJ /m2-día) | G48: 3804 | H48: 6016 | I48: 8824 | J48: 9962 | K48: 13562 | L48: 13442 | M48: 14110 | N48: 11286 | O48: 10722 | P48: 8190 | Q48: 4400 | R48: 3042
C49: Altura (m) | D49: Indice de nubosidad | F49: (-) | G49: 0.3 | H49: 0.32 | I49: 0.34 | J49: 0.3 | K49: 0.35 | L49: 0.32 | M49: 0.35 | N49: 0.31 | O49: 0.37 | P49: 0.38 | Q49: 0.3 | R49: 0.27
C50: 19 | D50: Temperatura agua de red (UNE 94002) | F50: ºC | G50: 9 | H50: 10 | I50: 10 | J50: 11 | K50: 13 | L50: 15 | M50: 17 | N50: 17 | O50: 16 | P50: 14 | Q50: 11 | R50: 10
D51: Temperatura ambiente | F51: ºC | G51: 8.6 | H51: 8.7 | I51: 11.6 | J51: 12.1 | K51: 14.6 | L51: 17.6 | M51: 19.5 | N51: 19.7 | O51: 18.4 | P51: 15.9 | Q51: 11.8 | R51: 9.4
D52: Grados-día (15/15) calef. | F52: ºC | G52: 179 | H52: 151.1 | I52: 164.4 | J52: 134.7 | K52: 50.7 | L52: 6.7 | M52: 0.1 | N52: 0.5 | O52: 10.2 | P52: 59.1 | Q52: 137.8 | R52: 188.4
D53: Grados-día (18/18) calef. | F53: ºC
D54: Grados-día (21/21) refrig. | F54: ºC
B55: Burgos | C55: 42.37 | D55: Radiación en superficie plana | F55: (kJ /m2-día) | G55: 3708 | H55: 7996 | I55: 10780 | J55: 14386 | K55: 18110 | L55: 21434 | M55: 22964 | N55: 20080 | O55: 14452 | P55: 10034 | Q55: 5170 | R55: 2910
C56: Altura (m) | D56: Indice de nubosidad | F56: (-) | G56: 0.27 | H56: 0.42 | I56: 0.41 | J56: 0.42 | K56: 0.46 | L56: 0.52 | M56: 0.57 | N56: 0.56 | O56: 0.49 | P56: 0.46 | Q56: 0.34 | R56: 0.24
C57: 860 | D57: Temperatura agua de red (UNE 94002) | F57: ºC | G57: 5 | H57: 6 | I57: 7 | J57: 9 | K57: 11 | L57: 13 | M57: 16 | N57: 16 | O57: 14 | P57: 11 | Q57: 7 | R57: 6
D58: Temperatura ambiente | F58: ºC | G58: 2.5 | H58: 3.8 | I58: 7.1 | J58: 9.2 | K58: 12.2 | L58: 16.2 | M58: 19.2 | N58: 18.8 | O58: 16.2 | P58: 11.3 | Q58: 6.5 | R58: 3.4
D59: Grados-día (15/15) calef. | F59: ºC | G59: 387 | H59: 335.3 | I59: 328.2 | J59: 241.1 | K59: 145.2 | L59: 50.5 | M59: 6.8 | N59: 10.9 | O59: 52.8 | P59: 148.7 | Q59: 284.6 | R59: 392.4
D60: Grados-día (18/18) calef. | F60: ºC
D61: Grados-día (21/21) refrig. | F61: ºC
B62: Cáceres | C62: 39.33 | D62: Radiación en superficie plana | F62: (kJ /m2-día) | G62: 6061 | H62: 9614 | I62: 14992 | J62: 20273 | K62: 23157 | L62: 26877 | M62: 31768 | N62: 29218 | O62: 22321 | P62: 12749 | Q62: 7691 | R62: 5852
C63: Altura (m) | D63: Indice de nubosidad | F63: (-) | G63: 0.39 | H63: 0.46 | I63: 0.54 | J63: 0.58 | K63: 0.59 | L63: 0.65 | M63: 0.78 | N63: 0.79 | O63: 0.73 | P63: 0.54 | Q63: 0.45 | R63: 0.42
C64: 439 | D64: Temperatura agua de red (UNE 94002) | F64: ºC | G64: 9 | H64: 10 | I64: 11 | J64: 12 | K64: 14 | L64: 18 | M64: 21 | N64: 20 | O64: 19 | P64: 15 | Q64: 11 | R64: 9
D65: Temperatura ambiente | F65: ºC | G65: 7.7 | H65: 9 | I65: 11.7 | J65: 14.4 | K65: 17.4 | L65: 22.5 | M65: 26 | N65: 25.6 | O65: 22.3 | P65: 16.9 | Q65: 11.7 | R65: 8.1
D66: Grados-día (15/15) calef. | F66: ºC | G66: 209.9 | H66: 180.7 | I66: 140.6 | J66: 76.5 | K66: 32.9 | L66: 1 | M66: 0 | N66: 0 | O66: 1.6 | P66: 24.9 | Q66: 111.1 | R66: 246.7
D67: Grados-día (18/18) calef. | F67: ºC
D68: Grados-día (21/21) refrig. | F68: ºC
B69: Cádiz | C69: 36.47 | D69: Radiación en superficie plana | F69: (kJ /m2-día) | G69: 8394 | H69: 13264 | I69: 16458 | J69: 22270 | K69: 25630 | L69: 27322 | M69: 27222 | N69: 25710 | O69: 20528 | P69: 14594 | Q69: 9750 | R69: 7878
C70: Altura (m) | D70: Indice de nubosidad | F70: (-) | G70: 0.49 | H70: 0.59 | I70: 0.57 | J70: 0.63 | K70: 0.65 | L70: 0.66 | M70: 0.67 | N70: 0.69 | O70: 0.65 | P70: 0.59 | Q70: 0.52 | R70: 0.5
C71: 4 | D71: Temperatura agua de red (UNE 94002) | F71: ºC | G71: 12 | H71: 12 | I71: 13 | J71: 14 | K71: 16 | L71: 18 | M71: 19 | N71: 20 | O71: 19 | P71: 17 | Q71: 14 | R71: 12
D72: Temperatura ambiente | F72: ºC | G72: 11.4 | H72: 12.5 | I72: 14.7 | J72: 11.6 | K72: 18.8 | L72: 22.2 | M72: 24.4 | N72: 24.9 | O72: 23.1 | P72: 19.5 | Q72: 15.6 | R72: 12.3
D73: Grados-día (15/15) calef. | F73: ºC | G73: 80.9 | H73: 51.7 | I73: 43.5 | J73: 15.8 | K73: 2.3 | L73: 0 | M73: 0 | N73: 0 | O73: 0 | P73: 1.5 | Q73: 16.8 | R73: 80.2
D74: Grados-día (18/18) calef. | F74: ºC
D75: Grados-día (21/21) refrig. | F75: ºC
B76: Castellón | C76: 39.98 | D76: Radiación en superficie plana | F76: (kJ /m2-día) | G76: 7604 | H76: 12424 | I76: 15634 | J76: 18496 | K76: 21158 | L76: 23044 | M76: 23364 | N76: 20306 | O76: 17170 | P76: 12126 | Q76: 7766 | R76: 6806
C77: Altura (m) | D77: Indice de nubosidad | F77: (-) | G77: 0.5 | H77: 0.6 | I77: 0.57 | J77: 0.54 | K77: 0.54 | L77: 0.56 | M77: 0.58 | N77: 0.56 | O77: 0.57 | P77: 0.52 | Q77: 0.47 | R77: 0.5
C78: 30 | D78: Temperatura agua de red (UNE 94002) | F78: ºC | G78: 10 | H78: 11 | I78: 12 | J78: 13 | K78: 15 | L78: 18 | M78: 19 | N78: 20 | O78: 18 | P78: 16 | Q78: 12 | R78: 11
D79: Temperatura ambiente | F79: ºC | G79: 10.6 | H79: 11.1 | I79: 13.1 | J79: 14.9 | K79: 17.8 | L79: 21.6 | M79: 24.3 | N79: 24.7 | O79: 22.8 | P79: 18.5 | Q79: 14.5 | R79: 11.6
D80: Grados-día (15/15) calef. | F80: ºC | G80: 124.3 | H80: 102.3 | I80: 90.2 | J80: 40.2 | K80: 3.4 | L80: 0 | M80: 0 | N80: 0 | O80: 0 | P80: 5 | Q80: 40.5 | R80: 118.4
D81: Grados-día (18/18) calef. | F81: ºC
D82: Grados-día (21/21) refrig. | F82: ºC
B83: Ciudad Real | C83: 38.98 | D83: Radiación en superficie plana | F83: (kJ /m2-día) | G83: 5948 | H83: 10424 | I83: 12642 | J83: 16584 | K83: 20720 | L83: 23024 | M83: 25764 | N83: 22956 | O83: 17426 | P83: 10974 | Q83: 6493 | R83: 4612
C84: Altura (m) | D84: Indice de nubosidad | F84: (-) | G84: 0.38 | H84: 0.49 | I84: 0.45 | J84: 0.48 | K84: 0.53 | L84: 0.56 | M84: 0.64 | N84: 0.56 | O84: 0.57 | P84: 0.47 | Q84: 0.38 | R84: 0.33
C85: 635 | D85: Temperatura agua de red (UNE 94002) | F85: ºC | G85: 7 | H85: 8 | I85: 10 | J85: 11 | K85: 14 | L85: 17 | M85: 20 | N85: 20 | O85: 17 | P85: 13 | Q85: 10 | R85: 7
D86: Temperatura ambiente | F86: ºC | G86: 5.4 | H86: 7.3 | I86: 10.4 | J86: 12.9 | K86: 15.9 | L86: 21.2 | M86: 25.5 | N86: 24.8 | O86: 20.7 | P86: 14.8 | Q86: 9.3 | R86: 6.2
D87: Grados-día (15/15) calef. | F87: ºC | G87: 308.1 | H87: 241.5 | I87: 199.3 | J87: 111.9 | K87: 41.7 | L87: 3.1 | M87: 0 | N87: 0 | O87: 3.6 | P87: 51.4 | Q87: 193 | R87: 322.9
D88: Grados-día (18/18) calef. | F88: ºC
D89: Grados-día (21/21) refrig. | F89: ºC
B90: Córdoba | C90: 37.88 | D90: Radiación en superficie plana | F90: (kJ /m2-día) | G90: 7400 | H90: 11094 | I90: 14156 | J90: 17224 | K90: 19014 | L90: 24266 | M90: 15722 | N90: 23412 | O90: 17988 | P90: 11894 | Q90: 8228 | R90: 6236
C91: Altura (m) | D91: Indice de nubosidad | F91: (-) | G91: 0.46 | H91: 0.51 | I91: 0.5 | J91: 0.49 | K91: 0.48 | L91: 0.59 | M91: 0.46 | N91: 0.63 | O91: 0.58 | P91: 0.49 | Q91: 0.46 | R91: 0.42
C92: 123 | D92: Temperatura agua de red (UNE 94002) | F92: ºC | G92: 10 | H92: 11 | I92: 12 | J92: 14 | K92: 16 | L92: 19 | M92: 21 | N92: 21 | O92: 19 | P92: 16 | Q92: 12 | R92: 10
D93: Temperatura ambiente | F93: ºC | G93: 9.1 | H93: 10.7 | I93: 13.5 | J93: 16.4 | K93: 19.4 | L93: 24.4 | M93: 27.9 | N93: 27.6 | O93: 24.3 | P93: 18.6 | Q93: 13.5 | R93: 9.6
D94: Grados-día (15/15) calef. | F94: ºC | G94: 220 | H94: 148.6 | I94: 117.3 | J94: 50.6 | K94: 8.3 | L94: 0 | M94: 0 | N94: 0 | O94: 0.1 | P94: 19.5 | Q94: 100.7 | R94: 203.7
D95: Grados-día (18/18) calef. | F95: ºC
D96: Grados-día (21/21) refrig. | F96: ºC
B97: A Coruña | C97: 43.37 | D97: Radiación en superficie plana | F97: (kJ /m2-día) | G97: 5172 | H97: 7638 | I97: 11078 | J97: 14676 | K97: 15016 | L97: 16876 | M97: 18172 | N97: 14926 | O97: 13356 | P97: 8244 | Q97: 6268 | R97: 3938
C98: Altura (m) | D98: Indice de nubosidad | F98: (-) | G98: 0.4 | H98: 0.41 | I98: 0.43 | J98: 0.44 | K98: 0.38 | L98: 0.41 | M98: 0.45 | N98: 0.42 | O98: 0.42 | P98: 0.39 | Q98: 0.43 | R98: 0.34
C99: 5 | D99: Temperatura agua de red (UNE 94002) | F99: ºC | G99: 10 | H99: 10 | I99: 11 | J99: 12 | K99: 13 | L99: 14 | M99: 16 | N99: 16 | O99: 15 | P99: 14 | Q99: 12 | R99: 11
D100: Temperatura ambiente | F100: ºC | G100: 9.9 | H100: 9.8 | I100: 11.5 | J100: 12.4 | K100: 14 | L100: 16.5 | M100: 18.2 | N100: 18.9 | O100: 17.8 | P100: 15.3 | Q100: 12.4 | R100: 10.2
D101: Grados-día (15/15) calef. | F101: ºC | G101: 161.8 | H101: 152.6 | I101: 150.1 | J101: 111.8 | K101: 62.6 | L101: 11.2 | M101: 0.1 | N101: 0 | O101: 1.9 | P101: 28.7 | Q101: 89.8 | R101: 158.7
D102: Grados-día (18/18) calef. | F102: ºC
D103: Grados-día (21/21) refrig. | F103: ºC
B104: Cuenca | C104: 40.08 | D104: Radiación en superficie plana | F104: (kJ /m2-día) | G104: 6040 | H104: 9212 | I104: 11800 | J104: 15266 | K104: 18680 | L104: 20928 | M104: 23788 | N104: 21468 | O104: 15982 | P104: 11076 | Q104: 6394 | R104: 4968
C105: Altura (m) | D105: Indice de nubosidad | F105: (-) | G105: 0.41 | H105: 0.45 | I105: 0.43 | J105: 0.44 | K105: 0.47 | L105: 0.5 | M105: 0.59 | N105: 0.59 | O105: 0.53 | P105: 0.48 | Q105: 0.39 | R105: 0.37
C106: 1001 | D106: Temperatura agua de red (UNE 94002) | F106: ºC | G106: 6 | H106: 7 | I106: 8 | J106: 10 | K106: 13 | L106: 16 | M106: 18 | N106: 18 | O106: 16 | P106: 12 | Q106: 9 | R106: 7
D107: Temperatura ambiente | F107: ºC | G107: 3 | H107: 4.3 | I107: 7.3 | J107: 10 | K107: 13.3 | L107: 18.1 | M107: 21.9 | N107: 21.5 | O107: 18 | P107: 12 | Q107: 7.2 | R107: 4.1
D108: Grados-día (15/15) calef. | F108: ºC | G108: 239.1 | H108: 291.6 | I108: 264.7 | J108: 168 | K108: 78.6 | L108: 11.2 | M108: 0 | N108: 0 | O108: 13.5 | P108: 89 | Q108: 227.2 | R108: 342.5
D109: Grados-día (18/18) calef. | F109: ºC
D110: Grados-día (21/21) refrig. | F110: ºC
B111: Girona | C111: 41.38 | D111: Radiación en superficie plana | F111: (kJ /m2-día) | G111: 6790 | H111: 9520 | I111: 13480 | J111: 17770 | K111: 21120 | L111: 22640 | M111: 21910 | N111: 19070 | O111: 14980 | P111: 10710 | Q111: 7400 | R111: 5950
C112: Altura (m) | D112: Indice de nubosidad | F112: (-) | G112: 0.53 | H112: 0.53 | I112: 0.51 | J112: 0.47 | K112: 0.46 | L112: 0.41 | M112: 0.55 | N112: 0.5 | O112: 0.46 | P112: 0.48 | Q112: 0.48 | R112: 0.46
C113: 75 | D113: Temperatura agua de red (UNE 94002) | F113: ºC | G113: 8 | H113: 9 | I113: 10 | J113: 11 | K113: 14 | L113: 16 | M113: 19 | N113: 18 | O113: 17 | P113: 14 | Q113: 10 | R113: 9
D114: Temperatura ambiente | F114: ºC | G114: 7.3 | H114: 8.4 | I114: 11.1 | J114: 13.4 | K114: 16.7 | L114: 20.8 | M114: 23.5 | N114: 23.3 | O114: 20.9 | P114: 16.1 | Q114: 11.4 | R114: 8
D115: Grados-día (15/15) calef. | F115: ºC | G115: 244 | H115: 201 | I115: 156 | J115: 118 | K115: 44 | L115: 10 | M115: 0 | N115: 0 | O115: 14 | P115: 64 | Q115: 141 | R115: 224
D116: Grados-día (18/18) calef. | F116: ºC | G116: 333 | H116: 279 | I116: 233 | J116: 186 | K116: 95 | L116: 44 | M116: 9 | N116: 7 | O116: 51 | P116: 121 | Q116: 214 | R116: 310
D117: Grados-día (21/21) refrig. | F117: ºC | G117: 0 | H117: 0 | I117: 0 | J117: 0 | K117: 16 | L117: 45 | M117: 107 | N117: 116 | O117: 39 | P117: 9 | Q117: 0 | R117: 0
B118: Granada | C118: 37.18 | D118: Radiación en superficie plana | F118: (kJ /m2-día) | G118: 6880 | H118: 9670 | I118: 12250 | J118: 15872 | K118: 18594 | L118: 21006 | M118: 23686 | N118: 18806 | O118: 15452 | P118: 11206 | Q118: 7414 | R118: 5510
C119: Altura (m) | D119: Indice de nubosidad | F119: (-) | G119: 0.41 | H119: 0.44 | I119: 0.43 | J119: 0.45 | K119: 0.47 | L119: 0.51 | M119: 0.59 | N119: 0.51 | O119: 0.49 | P119: 0.46 | Q119: 0.41 | R119: 0.36
C120: 685 | D120: Temperatura agua de red (UNE 94002) | F120: ºC | G120: 8 | H120: 9 | I120: 10 | J120: 12 | K120: 14 | L120: 17 | M120: 20 | N120: 19 | O120: 17 | P120: 14 | Q120: 11 | R120: 8
D121: Temperatura ambiente | F121: ºC | G121: 6.5 | H121: 8.1 | I121: 11.1 | J121: 13.5 | K121: 16.3 | L121: 21.9 | M121: 25.5 | N121: 25.1 | O121: 21.5 | P121: 15.8 | Q121: 11.1 | R121: 7.2
D122: Grados-día (15/15) calef. | F122: ºC | G122: 257.3 | H122: 196 | I122: 155 | J122: 69 | K122: 0 | L122: 0 | M122: 0 | N122: 0 | O122: 0 | P122: 0 | Q122: 132 | R122: 232.5
D123: Grados-día (18/18) calef. | F123: ºC
D124: Grados-día (21/21) refrig. | F124: ºC
B125: Guadalajara | C125: 40.63 | D125: Radiación en superficie plana | F125: (kJ /m2-día) | G125: 4990 | H125: 7658 | I125: 9948 | J125: 12998 | K125: 16258 | L125: 18372 | M125: 23580 | N125: 20474 | O125: 14554 | P125: 10034 | Q125: 5186 | R125: 4166
C126: Altura (m) | D126: Indice de nubosidad | F126: (-) | G126: 0.34 | H126: 0.38 | I126: 0.37 | J126: 0.38 | K126: 0.41 | L126: 0.44 | M126: 0.58 | N126: 0.56 | O126: 0.49 | P126: 0.44 | Q126: 0.32 | R126: 0.32
C127: 679 | D127: Temperatura agua de red (UNE 94002) | F127: ºC | G127: 7 | H127: 8 | I127: 9 | J127: 11 | K127: 14 | L127: 17 | M127: 19 | N127: 19 | O127: 16 | P127: 13 | Q127: 9 | R127: 7
D128: Temperatura ambiente | F128: ºC | G128: 8.1 | H128: 10.4 | I128: 14.7 | J128: 17.9 | K128: 21.5 | L128: 26.7 | M128: 31.5 | N128: 30.5 | O128: 25.9 | P128: 18.6 | Q128: 12.1 | R128: 8.5
D129: Grados-día (15/15) calef. | F129: ºC | G129: 288.5 | H129: 241.8 | I129: 210 | J129: 121.3 | K129: 46.2 | L129: 3 | M129: 0 | N129: 0 | O129: 5.2 | P129: 54 | Q129: 183.9 | R129: 294.7
D130: Grados-día (18/18) calef. | F130: ºC
D131: Grados-día (21/21) refrig. | F131: ºC
B132: Huelva | C132: 37.25 | D132: Radiación en superficie plana | F132: (kJ /m2-día) | G132: 7572 | H132: 11858 | I132: 15798 | J132: 20796 | K132: 24036 | L132: 25632 | M132: 26996 | N132: 24840 | O132: 20612 | P132: 13088 | Q132: 8670 | R132: 6684
C133: Altura (m) | D133: Indice de nubosidad | F133: (-) | G133: 0.46 | H133: 0.54 | I133: 0.55 | J133: 0.59 | K133: 0.61 | L133: 0.62 | M133: 0.67 | N133: 0.67 | O133: 0.66 | P133: 0.54 | Q133: 0.48 | R133: 0.44
C134: 56 | D134: Temperatura agua de red (UNE 94002) | F134: ºC | G134: 12 | H134: 12 | I134: 13 | J134: 14 | K134: 16 | L134: 18 | M134: 20 | N134: 20 | O134: 19 | P134: 17 | Q134: 14 | R134: 12
D135: Temperatura ambiente | F135: ºC | G135: 11.2 | H135: 12.3 | I135: 14.4 | J135: 16.6 | K135: 18.8 | L135: 22.3 | M135: 25.1 | N135: 25.2 | O135: 23.1 | P135: 19.4 | Q135: 15.2 | R135: 11.9
D136: Grados-día (15/15) calef. | F136: ºC | G136: 91.8 | H136: 60.3 | I136: 48.1 | J136: 16.1 | K136: 2.3 | L136: 0 | M136: 0 | N136: 0 | O136: 0 | P136: 1.3 | Q136: 25.8 | R136: 99.8
D137: Grados-día (18/18) calef. | F137: ºC
D138: Grados-día (21/21) refrig. | F138: ºC
B139: Huesca | C139: 42.15 | D139: Radiación en superficie plana | F139: (kJ /m2-día) | G139: 6434 | H139: 11472 | I139: 14994 | J139: 17614 | K139: 20608 | L139: 22330 | M139: 23894 | N139: 20734 | O139: 15420 | P139: 11370 | Q139: 6772 | R139: 4966
C140: Altura (m) | D140: Indice de nubosidad | F140: (-) | G140: 0.47 | H140: 0.59 | I140: 0.57 | J140: 0.52 | K140: 0.53 | L140: 0.54 | M140: 0.59 | N140: 0.57 | O140: 0.52 | P140: 0.52 | Q140: 0.44 | R140: 0.41
C141: 488 | D141: Temperatura agua de red (UNE 94002) | F141: ºC | G141: 7 | H141: 8 | I141: 10 | J141: 11 | K141: 14 | L141: 16 | M141: 19 | N141: 18 | O141: 17 | P141: 13 | Q141: 9 | R141: 7
D142: Temperatura ambiente | F142: ºC | G142: 4.3 | H142: 6.1 | I142: 9.7 | J142: 12.4 | K142: 15.9 | L142: 19.9 | M142: 22.8 | N142: 22.5 | O142: 19.3 | P142: 14.1 | Q142: 8.9 | R142: 5.4
D143: Grados-día (15/15) calef. | F143: ºC | G143: 314 | H143: 244.9 | I143: 202.3 | J143: 121.1 | K143: 42.2 | L143: 4.4 | M143: 0 | N143: 0.1 | O143: 6.8 | P143: 57.8 | Q143: 182.4 | R143: 324.6
D144: Grados-día (18/18) calef. | F144: ºC
D145: Grados-día (21/21) refrig. | F145: ºC
B146: Jaén | C146: 37.77 | D146: Radiación en superficie plana | F146: (kJ /m2-día) | G146: 6207 | H146: 9906 | I146: 14671 | J146: 18057 | K146: 20189 | L146: 24411 | M146: 26835 | N146: 24285 | O146: 19646 | P146: 11620 | Q146: 7774 | R146: 6311
C147: Altura (m) | D147: Indice de nubosidad | F147: (-) | G147: 0.38 | H147: 0.45 | I147: 0.52 | J147: 0.51 | K147: 0.51 | L147: 0.51 | M147: 0.66 | N147: 0.65 | O147: 0.63 | P147: 0.48 | Q147: 0.43 | R147: 0.42
C148: 574 | D148: Temperatura agua de red (UNE 94002) | F148: ºC | G148: 9 | H148: 10 | I148: 11 | J148: 13 | K148: 16 | L148: 19 | M148: 21 | N148: 21 | O148: 19 | P148: 15 | Q148: 12 | R148: 9
D149: Temperatura ambiente | F149: ºC | G149: 8.1 | H149: 9.5 | I149: 12.3 | J149: 14.9 | K149: 18.4 | L149: 27.8 | M149: 27.7 | N149: 27.3 | O149: 23.4 | P149: 17.6 | Q149: 12.7 | R149: 8.9
D150: Grados-día (15/15) calef. | F150: ºC | G150: 188 | H150: 146 | I150: 119 | J150: 54 | K150: 17 | L150: 0 | M150: 0 | N150: 0 | O150: 0 | P150: 16 | Q150: 91 | R150: 179
D151: Grados-día (18/18) calef. | F151: ºC
D152: Grados-día (21/21) refrig. | F152: ºC
B153: León | C153: 42.58 | D153: Radiación en superficie plana | F153: (kJ /m2-día) | G153: 5600 | H153: 10726 | I153: 13652 | J153: 17314 | K153: 19144 | L153: 23574 | M153: 24820 | N153: 21668 | O153: 15406 | P153: 10630 | Q153: 6972 | R153: 4216
C154: Altura (m) | D154: Indice de nubosidad | F154: (-) | G154: 0.42 | H154: 0.56 | I154: 0.52 | J154: 0.51 | K154: 0.49 | L154: 0.57 | M154: 0.61 | N154: 0.6 | O154: 0.53 | P154: 0.49 | Q154: 0.44 | R154: 0.35
C155: 838 | D155: Temperatura agua de red (UNE 94002) | F155: ºC | G155: 6 | H155: 6 | I155: 8 | J155: 9 | K155: 12 | L155: 14 | M155: 16 | N155: 16 | O155: 15 | P155: 11 | Q155: 8 | R155: 6
D156: Temperatura ambiente | F156: ºC | G156: 2.8 | H156: 4.2 | I156: 7.6 | J156: 9.9 | K156: 12.5 | L156: 17.2 | M156: 19.7 | N156: 19.5 | O156: 16.6 | P156: 11.8 | Q156: 7 | R156: 3.6
D157: Grados-día (15/15) calef. | F157: ºC | G157: 403 | H157: 333.2 | I157: 29.76 | J157: 20.4 | K157: 80.6 | L157: 0 | M157: 0 | N157: 0 | O157: 0 | P157: 16.43 | Q157: 29.1 | R157: 36.89
D158: Grados-día (18/18) calef. | F158: ºC
D159: Grados-día (21/21) refrig. | F159: ºC
B160: Lleida | C160: 41.62 | D160: Radiación en superficie plana | F160: (kJ /m2-día) | G160: 4920 | H160: 8280 | I160: 13220 | J160: 18640 | K160: 22920 | L160: 24940 | M160: 24130 | N160: 20650 | O160: 15540 | P160: 10140 | Q160: 5900 | R160: 3990
C161: Altura (m) | D161: Indice de nubosidad | F161: (-) | G161: 0.44 | H161: 0.62 | I161: 0.58 | J161: 0.56 | K161: 0.53 | L161: 0.58 | M161: 0.61 | N161: 0.59 | O161: 0.57 | P161: 0.54 | Q161: 0.4 | R161: 0.32
C162: 155 | D162: Temperatura agua de red (UNE 94002) | F162: ºC | G162: 7 | H162: 9 | I162: 10 | J162: 12 | K162: 15 | L162: 17 | M162: 20 | N162: 19 | O162: 17 | P162: 14 | Q162: 10 | R162: 7
D163: Temperatura ambiente | F163: ºC | G163: 4.9 | H163: 7.2 | I163: 11.4 | J163: 14.6 | K163: 18.3 | L163: 21.9 | M163: 24.8 | N163: 24.6 | O163: 21.6 | P163: 15.5 | Q163: 9.5 | R163: 5.7
D164: Grados-día (15/15) calef. | F164: ºC | G164: 302 | H164: 220 | I164: 146 | J164: 99 | K164: 36 | L164: 3 | M164: 0 | N164: 0 | O164: 13 | P164: 78 | Q164: 184 | R164: 277
D165: Grados-día (18/18) calef. | F165: ºC | G165: 398 | H165: 302 | I165: 226 | J165: 169 | K165: 90 | L165: 38 | M165: 11 | N165: 13 | O165: 55 | P165: 145 | Q165: 266 | R165: 370
D166: Grados-día (21/21) refrig. | F166: ºC | G166: 0 | H166: 0 | I166: 0 | J166: 4 | K166: 27 | L166: 70 | M166: 132 | N166: 128 | O166: 50 | P166: 8 | Q166: 0 | R166: 0
B167: Logroño | C167: 42.45 | D167: Radiación en superficie plana | F167: (kJ /m2-día) | G167: 5986 | H167: 9630 | I167: 13606 | J167: 18254 | K167: 21228 | L167: 23572 | M167: 25224 | N167: 21396 | O167: 16538 | P167: 11808 | Q167: 6740 | R167: 5024
C168: Altura (m) | D168: Indice de nubosidad | F168: (-) | G168: 0.45 | H168: 0.5 | I168: 0.52 | J168: 0.54 | K168: 0.54 | L168: 0.57 | M168: 0.62 | N168: 0.59 | O168: 0.56 | P168: 0.54 | Q168: 0.45 | R168: 0.42
C169: 384 | D169: Temperatura agua de red (UNE 94002) | F169: ºC | G169: 7 | H169: 8 | I169: 10 | J169: 11 | K169: 13 | L169: 16 | M169: 18 | N169: 18 | O169: 16 | P169: 13 | Q169: 10 | R169: 8
D170: Temperatura ambiente | F170: ºC | G170: 5.1 | H170: 6.5 | I170: 9.7 | J170: 11.9 | K170: 14.9 | L170: 19.1 | M170: 21.8 | N170: 21.5 | O170: 19 | P170: 13.8 | Q170: 8.9 | R170: 6.1
D171: Grados-día (15/15) calef. | F171: ºC | G171: 288.1 | H171: 230.3 | I171: 203.5 | J171: 143.3 | K171: 50.7 | L171: 8.2 | M171: 0 | N171: 0.3 | O171: 14.3 | P171: 93.1 | Q171: 190 | R171: 284.6
D172: Grados-día (18/18) calef. | F172: ºC
D173: Grados-día (21/21) refrig. | F173: ºC
B174: Lugo | C174: 43.1 | D174: Radiación en superficie plana | F174: (kJ /m2-día) | G174: 3868 | H174: 7238 | I174: 8590 | J174: 13566 | K174: 13836 | L174: 16734 | M174: 17034 | N174: 15242 | O174: 11302 | P174: 9146 | Q174: 5342 | R174: 3156
C175: Altura (m) | D175: Indice de nubosidad | F175: (-) | G175: 0.3 | H175: 0.39 | I175: 0.33 | J175: 0.4 | K175: 0.35 | L175: 0.4 | M175: 0.42 | N175: 0.42 | O175: 0.39 | P175: 0.43 | Q175: 0.36 | R175: 0.27
C176: 454 | D176: Temperatura agua de red (UNE 94002) | F176: ºC | G176: 7 | H176: 8 | I176: 9 | J176: 10 | K176: 11 | L176: 13 | M176: 15 | N176: 15 | O176: 14 | P176: 12 | Q176: 9 | R176: 8
D177: Temperatura ambiente | F177: ºC | G177: 6 | H177: 6.7 | I177: 9.3 | J177: 11 | K177: 13 | L177: 16.2 | M177: 18.1 | N177: 18.7 | O177: 16.8 | P177: 13.1 | Q177: 8.9 | R177: 6.2
D178: Grados-día (15/15) calef. | F178: ºC | G178: 328 | H178: 263.5 | I178: 263.5 | J178: 204 | K178: 74.4 | L178: 0 | M178: 0 | N178: 0 | O178: 0 | P178: 114.7 | Q178: 128 | R178: 291.5
D179: Grados-día (18/18) calef. | F179: ºC
D180: Grados-día (21/21) refrig. | F180: ºC
B181: Madrid | C181: 40.42 | D181: Radiación en superficie plana | F181: (kJ /m2-día) | G181: 6362 | H181: 9798 | I181: 14150 | J181: 19552 | K181: 21184 | L181: 23530 | M181: 25874 | N181: 22986 | O181: 16118 | P181: 10762 | Q181: 7326 | R181: 6263
C182: Altura (m) | D182: Indice de nubosidad | F182: (-) | G182: 0.43 | H182: 0.48 | I182: 0.52 | J182: 0.57 | K182: 0.54 | L182: 0.57 | M182: 0.64 | N182: 0.63 | O182: 0.54 | P182: 0.47 | Q182: 0.45 | R182: 0.47
C183: 655 | D183: Temperatura agua de red (UNE 94002) | F183: ºC | G183: 8 | H183: 8 | I183: 10 | J183: 12 | K183: 14 | L183: 17 | M183: 20 | N183: 19 | O183: 17 | P183: 13 | Q183: 10 | R183: 8
D184: Temperatura ambiente | F184: ºC | G184: 5 | H184: 6.6 | I184: 10 | J184: 12.7 | K184: 15.8 | L184: 20.6 | M184: 24.2 | N184: 23.7 | O184: 19.8 | P184: 14 | Q184: 9 | R184: 5.6
D185: Grados-día (15/15) calef. | F185: ºC | G185: 321.7 | H185: 246.4 | I185: 208.1 | J185: 122.9 | K185: 41.1 | L185: 2 | M185: 0 | N185: 0 | O185: 7.8 | P185: 86 | Q185: 209.1 | R185: 309.8
D186: Grados-día (18/18) calef. | F186: ºC
D187: Grados-día (21/21) refrig. | F187: ºC
B188: Málaga | C188: 36.85 | D188: Radiación en superficie plana | F188: (kJ /m2-día) | G188: 8204 | H188: 11556 | I188: 17708 | J188: 18882 | K188: 22818 | L188: 24870 | M188: 25916 | N188: 22316 | O188: 18546 | P188: 13020 | Q188: 10134 | R188: 6236
C189: Altura (m) | D189: Indice de nubosidad | F189: (-) | G189: 0.49 | H189: 0.52 | I189: 0.62 | J189: 0.53 | K189: 0.58 | L189: 0.6 | M189: 0.64 | N189: 0.6 | O189: 0.59 | P189: 0.53 | Q189: 0.55 | R189: 0.4
C190: 8 | D190: Temperatura agua de red (UNE 94002) | F190: ºC | G190: 12 | H190: 12 | I190: 13 | J190: 14 | K190: 16 | L190: 18 | M190: 20 | N190: 20 | O190: 19 | P190: 16 | Q190: 14 | R190: 12
D191: Temperatura ambiente | F191: ºC | G191: 11.8 | H191: 12.6 | I191: 14.6 | J191: 16.2 | K191: 19.1 | L191: 22.6 | M191: 24.9 | N191: 25.4 | O191: 23 | P191: 19.3 | Q191: 15.8 | R191: 12.9
D192: Grados-día (15/15) calef. | F192: ºC | G192: 126 | H192: 88.8 | I192: 75.2 | J192: 36.3 | K192: 2.2 | L192: 0 | M192: 0 | N192: 0 | O192: 0 | P192: 5.8 | Q192: 37.5 | R192: 103.5
D193: Grados-día (18/18) calef. | F193: ºC
D194: Grados-día (21/21) refrig. | F194: ºC
B195: Murcia | C195: 37.98 | D195: Radiación en superficie plana | F195: (kJ /m2-día) | G195: 9546 | H195: 11978 | I195: 17208 | J195: 11352 | K195: 25288 | L195: 25748 | M195: 26922 | N195: 23954 | O195: 19050 | P195: 13900 | Q195: 9670 | R195: 7746
C196: Altura (m) | D196: Indice de nubosidad | F196: (-) | G196: 0.59 | H196: 0.55 | I196: 0.61 | J196: 0.61 | K196: 0.64 | L196: 0.62 | M196: 0.67 | N196: 0.64 | O196: 0.62 | P196: 0.58 | Q196: 0.54 | R196: 0.53
C197: 42 | D197: Temperatura agua de red (UNE 94002) | F197: ºC | G197: 11 | H197: 11 | I197: 12 | J197: 13 | K197: 15 | L197: 17 | M197: 19 | N197: 20 | O197: 18 | P197: 16 | Q197: 13 | R197: 11
D198: Temperatura ambiente | F198: ºC | G198: 9.5 | H198: 10.7 | I198: 13.3 | J198: 15.1 | K198: 18.7 | L198: 22.7 | M198: 25.7 | N198: 26.1 | O198: 23.4 | P198: 18.5 | Q198: 14 | R198: 10.7
D199: Grados-día (15/15) calef. | F199: ºC | G199: 175.5 | H199: 130.2 | I199: 99.1 | J199: 46.8 | K199: 7 | L199: 0 | M199: 0 | N199: 0 | O199: 0 | P199: 12.9 | Q199: 64.6 | R199: 166.5
D200: Grados-día (18/18) calef. | F200: ºC
D201: Grados-día (21/21) refrig. | F201: ºC
... 154 more rows

Sheet BBDD_Demanda
B2: Demanda de referencia a 45ºC (Tabla 1, UNE 94002) | G2: Coeficientes de uso y de intermitencia (GD calefacción)
B3: Criterio de demanda | C3: Litros ACS / día | D3: por | G3: Tipo de edificio | H3: Días de calefacción/mes | I3: Coeficiente de uso (u) | J3: Horas de calefacción/mes | K3: % de horas | L3: Coeficiente de intermitencia (i)
B4: Vivienda | C4: 40 | D4: persona | G4: Vivienda | H4: 30 | I4: 1 | J4: 15 | K4: 63 | L4: 0.85
B5: Hospitales y clínicas | C5: 80 | D5: persona | G5: Escuela | H5: 22 | I5: 0.8 | J5: 6 | K5: 25 | L5: 0.45
B6: Hotel ***** | C6: 100 | D6: persona | G6: Iglesia | H6: 6 | I6: 0.4 | J6: 6 | K6: 25 | L6: 0.45
B7: Hotel **** | C7: 80 | D7: persona | G7: Comercio | H7: 24 | I7: 0.85 | J7: 11 | K7: 46 | L7: 0.8
B8: Hotel *** | C8: 60 | D8: persona | G8: Oficina | H8: 24 | I8: 0.85 | J8: 9 | K8: 38 | L8: 0.7
B9: Hotel/Hostal ** | C9: 50 | D9: persona | G9: Hotel | H9: 30 | I9: 1 | J9: 15 | K9: 63 | L9: 0.85
B10: Camping | C10: 30 | D10: persona | G10: Industria | H10: 24 | I10: 0.85 | J10: 9 | K10: 38 | L10: 0.7
B11: Hostal/Pensión * | C11: 40 | D11: persona | G11: Hospital | H11: 30 | I11: 1 | J11: 24 | K11: 100 | L11: 1
B12: Residencia (ancianos, estudiantes, etc) | C12: 60 | D12: persona | G12: Cines y teatros | H12: 30 | I12: 1 | J12: 3 | K12: 13 | L12: 0.4
B13: Centro penitenciario | C13: 40 | D13: persona | G13: Salas de reuniones | H13: 6 | I13: 0.4 | J13: 3 | K13: 13 | L13: 0.4
B14: Albergue | C14: 35 | D14: persona
B15: Vestuarios/Duchas colectivas | C15: 30 | D15: persona
B16: Escuela sin duchas | C16: 6 | D16: persona
B17: Escuela con duchas | C17: 30 | D17: persona
B18: Cuarteles | C18: 40 | D18: persona | G18: Rendimientos estacionales de instalaciones
B19: Fábricas y talleres | C19: 30 | D19: persona | G19: Tipo de energía o combustible | H19: Tipo de instalación | I19: Rendimiento
B20: Oficinas | C20: 3 | D20: persona | G20: Combustible sólido | H20: Individual | I20: 0.5
B21: Gimnasios | C21: 30 | D21: persona | G21: Combustible sólido | H21: Central poco atendida | I21: 0.5
B22: Lavanderías | C22: 5 | D22: kilo de ropa | G22: Combustible sólido | H22: Central, atendida normalmente | I22: 0.6
B23: Restaurantes | C23: 12 | D23: persona | G23: Combustible sólido | H23: Central, atendida mecánicamente | I23: 0.7
B24: Cafeterías | C24: 2 | D24: persona | G24: Combustible líquido | H24: Individual | I24: 0.6
G25: Combustible líquido | H25: Central normal | I25: 0.7
B26: Poder calorífico de algunos combustibles | G26: Combustible líquido | H26: Central automatizada | I26: 0.8
B27: Combustible | C27: PCI | D27: Unidades | G27: Combustible Gas | H27: Individual | I27: 0.6
B28: Madera | C28: 11302.2 | D28: kJ/kg | G28: Combustible Gas | H28: Central normal | I28: 0.7
B29: Carbón vegetal | C29: 27209 | D29: kJ/kg | G29: Combustible Gas | H29: Central automatizada | I29: 0.8
B30: Carbón de turba | C30: 13813.8 | D30: kJ/kg | G30: Energía eléctrica | H30: Elementos individuales | I30: 1
B31: Carbón de hulla | C31: 20930 | D31: kJ/kg | G31: Energía eléctrica | H31: Radiadores (distribución) | I31: 0.8
B32: Carbón de antracita | C32: 29302 | D32: kJ/kg
B33: Gasoleo -C- | C33: 35790.3 | D33: kJ/litro
B34: Fueloleo | C34: 37674 | D34: kJ/litro
B35: Gasoleo -A- | C35: 41860 | D35: kJ/litro
B36: Gas butano | C36: 49645.96 | D36: kJ/kg
B37: Gas propano | C37: 50232 | D37: kJ/kg
B38: Gas ciudad | C38: 17581.2 | D38: kJ/kg
B39: Gas natural | C39: 41441.4 | D39: kJ/m3
B40: Energia eléctrica | C40: 3600 | D40: kJ/kWh
